Workbook

Sheet Sheet1
A1: DATA | B1: FURNIZOR | C1: CF | D1: CountryOfOrigin | E1: EXP | F1: DeliveryTermsCode | G1: ACode | H1: Bcode | I1: TransportCode | J1: INVNR | K1: VSCODE | L1: NAME | M1: GROUP | N1: UM | O1: Q | P1: PRICE | Q1: NETWEIGHT | R1: NETVEALUE | S1: SUPPL | T1: TOTALVALUE | U1: Curs | V1: CURRVALUE | W1: SYMB
A2: =IF([1]Sheet!$E2="","",[1]Sheet!$E2) -> 43865 | B2: =IF([1]Sheet!$A2="","",[1]Sheet!$A2) -> BROTHER INT INDUSTRIEMASCHINEN GMBH | C2: =IF(B2="","",VLOOKUP(B2,[2]Sheet1!$B$2:$C$708,2,0)) -> DE814895445 | D2: =IF(B2="","",VLOOKUP(B2,[2]Sheet1!$B$2:$D$708,3,0)) -> JP | E2: =IF(B2="","",VLOOKUP(B2,[2]Sheet1!$B$2:$E$708,4,0)) -> DE | F2: =IF(B2="","",VLOOKUP(B2,[2]Sheet1!$B$2:$F$708,5,0)) -> EXW | G2: =IF(B2="","",VLOOKUP(B2,[2]Sheet1!$B$2:$G$708,6,0)) -> 1 | H2: =IF(B2="","",VLOOKUP(B2,[2]Sheet1!$B$2:$H$708,7,0)) -> 1.1 | I2: =IF(B2="","",VLOOKUP(B2,[2]Sheet1!$B$2:$I$708,8,0)) -> 3 | K2: =IF(B2="","",VLOOKUP(L2,[3]Sheet1!$B$2:$J$5000,3,0)) -> 84439990 | L2: =IF([1]Sheet!$J2="","",[1]Sheet!$J2) -> BROTHER CAP RUBBER | N2: =IF(B2="","",VLOOKUP(L2,[3]Sheet1!$B$2:$J$5000,2,0)) -> BUC | O2: =IF([1]Sheet!$K2="","",[1]Sheet!$K2) -> 20 | P2: =IF([1]Sheet!$M2="","",[1]Sheet!$M2) -> 19.63 | Q2: =IF(ISNA(IF(B2="","",VLOOKUP(L2,[3]Sheet1!$B$2:$J$5000,9,0)*O2)),0,(IF(B2="","",VLOOKUP(L2,[3]Sheet1!$B$2:$J$5000,9,0)*O2))) -> 0 | R2: =IF([1]Sheet!$N2="","",[1]Sheet!$N2) -> 392.64
A3: =IF([1]Sheet!$E3="","",[1]Sheet!$E3) -> 43887 | B3: =IF([1]Sheet!$A3="","",[1]Sheet!$A3) -> BROTHER INT INDUSTRIEMASCHINEN GMBH | C3: =IF(B3="","",VLOOKUP(B3,[2]Sheet1!$B$2:$C$708,2,0)) -> DE814895445 | D3: =IF(B3="","",VLOOKUP(B3,[2]Sheet1!$B$2:$D$708,3,0)) -> JP | E3: =IF(B3="","",VLOOKUP(B3,[2]Sheet1!$B$2:$E$708,4,0)) -> DE | F3: =IF(B3="","",VLOOKUP(B3,[2]Sheet1!$B$2:$F$708,5,0)) -> EXW | G3: =IF(B3="","",VLOOKUP(B3,[2]Sheet1!$B$2:$G$708,6,0)) -> 1 | H3: =IF(B3="","",VLOOKUP(B3,[2]Sheet1!$B$2:$H$708,7,0)) -> 1.1 | I3: =IF(B3="","",VLOOKUP(B3,[2]Sheet1!$B$2:$I$708,8,0)) -> 3 | K3: =IF(B3="","",VLOOKUP(L3,[3]Sheet1!$B$2:$J$5000,3,0)) -> 84439990 | L3: =IF([1]Sheet!$J3="","",[1]Sheet!$J3) -> BROTHER CLEAN STICK R50 | N3: =IF(B3="","",VLOOKUP(L3,[3]Sheet1!$B$2:$J$5000,2,0)) -> BUC | O3: =IF([1]Sheet!$K3="","",[1]Sheet!$K3) -> 4 | P3: =IF([1]Sheet!$M3="","",[1]Sheet!$M3) -> 218.76 | Q3: =IF(ISNA(IF(B3="","",VLOOKUP(L3,[3]Sheet1!$B$2:$J$5000,9,0)*O3)),0,(IF(B3="","",VLOOKUP(L3,[3]Sheet1!$B$2:$J$5000,9,0)*O3))) -> 0 | R3: =IF([1]Sheet!$N3="","",[1]Sheet!$N3) -> 875.04
A4: =IF([1]Sheet!$E4="","",[1]Sheet!$E4) -> 43865 | B4: =IF([1]Sheet!$A4="","",[1]Sheet!$A4) -> BROTHER INT INDUSTRIEMASCHINEN GMBH | C4: =IF(B4="","",VLOOKUP(B4,[2]Sheet1!$B$2:$C$708,2,0)) -> DE814895445 | D4: =IF(B4="","",VLOOKUP(B4,[2]Sheet1!$B$2:$D$708,3,0)) -> JP | E4: =IF(B4="","",VLOOKUP(B4,[2]Sheet1!$B$2:$E$708,4,0)) -> DE | F4: =IF(B4="","",VLOOKUP(B4,[2]Sheet1!$B$2:$F$708,5,0)) -> EXW | G4: =IF(B4="","",VLOOKUP(B4,[2]Sheet1!$B$2:$G$708,6,0)) -> 1 | H4: =IF(B4="","",VLOOKUP(B4,[2]Sheet1!$B$2:$H$708,7,0)) -> 1.1 | I4: =IF(B4="","",VLOOKUP(B4,[2]Sheet1!$B$2:$I$708,8,0)) -> 3 | K4: =IF(B4="","",VLOOKUP(L4,[3]Sheet1!$B$2:$J$5000,3,0)) -> 84439990 | L4: =IF([1]Sheet!$J4="","",[1]Sheet!$J4) -> BROTHER FILTER FELT KIT | N4: =IF(B4="","",VLOOKUP(L4,[3]Sheet1!$B$2:$J$5000,2,0)) -> SET | O4: =IF([1]Sheet!$K4="","",[1]Sheet!$K4) -> 10 | P4: =IF([1]Sheet!$M4="","",[1]Sheet!$M4) -> 84.29 | Q4: =IF(ISNA(IF(B4="","",VLOOKUP(L4,[3]Sheet1!$B$2:$J$5000,9,0)*O4)),0,(IF(B4="","",VLOOKUP(L4,[3]Sheet1!$B$2:$J$5000,9,0)*O4))) -> 0 | R4: =IF([1]Sheet!$N4="","",[1]Sheet!$N4) -> 842.88
A5: =IF([1]Sheet!$E5="","",[1]Sheet!$E5) -> 43887 | B5: =IF([1]Sheet!$A5="","",[1]Sheet!$A5) -> BROTHER INT INDUSTRIEMASCHINEN GMBH | C5: =IF(B5="","",VLOOKUP(B5,[2]Sheet1!$B$2:$C$708,2,0)) -> DE814895445 | D5: =IF(B5="","",VLOOKUP(B5,[2]Sheet1!$B$2:$D$708,3,0)) -> JP | E5: =IF(B5="","",VLOOKUP(B5,[2]Sheet1!$B$2:$E$708,4,0)) -> DE | F5: =IF(B5="","",VLOOKUP(B5,[2]Sheet1!$B$2:$F$708,5,0)) -> EXW | G5: =IF(B5="","",VLOOKUP(B5,[2]Sheet1!$B$2:$G$708,6,0)) -> 1 | H5: =IF(B5="","",VLOOKUP(B5,[2]Sheet1!$B$2:$H$708,7,0)) -> 1.1 | I5: =IF(B5="","",VLOOKUP(B5,[2]Sheet1!$B$2:$I$708,8,0)) -> 3 | K5: =IF(B5="","",VLOOKUP(L5,[3]Sheet1!$B$2:$J$5000,3,0)) -> 84439990 | L5: =IF([1]Sheet!$J5="","",[1]Sheet!$J5) -> BROTHER FLASHING FOAM SET | N5: =IF(B5="","",VLOOKUP(L5,[3]Sheet1!$B$2:$J$5000,2,0)) -> BUC | O5: =IF([1]Sheet!$K5="","",[1]Sheet!$K5) -> 10 | P5: =IF([1]Sheet!$M5="","",[1]Sheet!$M5) -> 63.95 | Q5: =IF(ISNA(IF(B5="","",VLOOKUP(L5,[3]Sheet1!$B$2:$J$5000,9,0)*O5)),0,(IF(B5="","",VLOOKUP(L5,[3]Sheet1!$B$2:$J$5000,9,0)*O5))) -> 0 | R5: =IF([1]Sheet!$N5="","",[1]Sheet!$N5) -> 639.45
A6: =IF([1]Sheet!$E6="","",[1]Sheet!$E6) -> 43865 | B6: =IF([1]Sheet!$A6="","",[1]Sheet!$A6) -> BROTHER INT INDUSTRIEMASCHINEN GMBH | C6: =IF(B6="","",VLOOKUP(B6,[2]Sheet1!$B$2:$C$708,2,0)) -> DE814895445 | D6: =IF(B6="","",VLOOKUP(B6,[2]Sheet1!$B$2:$D$708,3,0)) -> JP | E6: =IF(B6="","",VLOOKUP(B6,[2]Sheet1!$B$2:$E$708,4,0)) -> DE | F6: =IF(B6="","",VLOOKUP(B6,[2]Sheet1!$B$2:$F$708,5,0)) -> EXW | G6: =IF(B6="","",VLOOKUP(B6,[2]Sheet1!$B$2:$G$708,6,0)) -> 1 | H6: =IF(B6="","",VLOOKUP(B6,[2]Sheet1!$B$2:$H$708,7,0)) -> 1.1 | I6: =IF(B6="","",VLOOKUP(B6,[2]Sheet1!$B$2:$I$708,8,0)) -> 3 | K6: =IF(B6="","",VLOOKUP(L6,[3]Sheet1!$B$2:$J$5000,3,0)) -> 34022090 | L6: =IF([1]Sheet!$J6="","",[1]Sheet!$J6) -> BROTHER FULL MAINTENANCE KIT (GT3) | N6: =IF(B6="","",VLOOKUP(L6,[3]Sheet1!$B$2:$J$5000,2,0)) -> SET | O6: =IF([1]Sheet!$K6="","",[1]Sheet!$K6) -> 6 | P6: =IF([1]Sheet!$M6="","",[1]Sheet!$M6) -> 187.97 | Q6: =IF(ISNA(IF(B6="","",VLOOKUP(L6,[3]Sheet1!$B$2:$J$5000,9,0)*O6)),0,(IF(B6="","",VLOOKUP(L6,[3]Sheet1!$B$2:$J$5000,9,0)*O6))) -> 6 | R6: =IF([1]Sheet!$N6="","",[1]Sheet!$N6) -> 1127.81
A7: =IF([1]Sheet!$E7="","",[1]Sheet!$E7) -> 43887 | B7: =IF([1]Sheet!$A7="","",[1]Sheet!$A7) -> BROTHER INT INDUSTRIEMASCHINEN GMBH | C7: =IF(B7="","",VLOOKUP(B7,[2]Sheet1!$B$2:$C$708,2,0)) -> DE814895445 | D7: =IF(B7="","",VLOOKUP(B7,[2]Sheet1!$B$2:$D$708,3,0)) -> JP | E7: =IF(B7="","",VLOOKUP(B7,[2]Sheet1!$B$2:$E$708,4,0)) -> DE | F7: =IF(B7="","",VLOOKUP(B7,[2]Sheet1!$B$2:$F$708,5,0)) -> EXW | G7: =IF(B7="","",VLOOKUP(B7,[2]Sheet1!$B$2:$G$708,6,0)) -> 1 | H7: =IF(B7="","",VLOOKUP(B7,[2]Sheet1!$B$2:$H$708,7,0)) -> 1.1 | I7: =IF(B7="","",VLOOKUP(B7,[2]Sheet1!$B$2:$I$708,8,0)) -> 3 | K7: =IF(B7="","",VLOOKUP(L7,[3]Sheet1!$B$2:$J$5000,3,0)) -> 34022090 | L7: =IF([1]Sheet!$J7="","",[1]Sheet!$J7) -> BROTHER FULL MAINTENANCE KIT (GTX) | N7: =IF(B7="","",VLOOKUP(L7,[3]Sheet1!$B$2:$J$5000,2,0)) -> BUC | O7: =IF([1]Sheet!$K7="","",[1]Sheet!$K7) -> 4 | P7: =IF([1]Sheet!$M7="","",[1]Sheet!$M7) -> 164.91 | Q7: =IF(ISNA(IF(B7="","",VLOOKUP(L7,[3]Sheet1!$B$2:$J$5000,9,0)*O7)),0,(IF(B7="","",VLOOKUP(L7,[3]Sheet1!$B$2:$J$5000,9,0)*O7))) -> 0 | R7: =IF([1]Sheet!$N7="","",[1]Sheet!$N7) -> 659.64
A8: =IF([1]Sheet!$E8="","",[1]Sheet!$E8) -> 43865 | B8: =IF([1]Sheet!$A8="","",[1]Sheet!$A8) -> BROTHER INT INDUSTRIEMASCHINEN GMBH | C8: =IF(B8="","",VLOOKUP(B8,[2]Sheet1!$B$2:$C$708,2,0)) -> DE814895445 | D8: =IF(B8="","",VLOOKUP(B8,[2]Sheet1!$B$2:$D$708,3,0)) -> JP | E8: =IF(B8="","",VLOOKUP(B8,[2]Sheet1!$B$2:$E$708,4,0)) -> DE | F8: =IF(B8="","",VLOOKUP(B8,[2]Sheet1!$B$2:$F$708,5,0)) -> EXW | G8: =IF(B8="","",VLOOKUP(B8,[2]Sheet1!$B$2:$G$708,6,0)) -> 1 | H8: =IF(B8="","",VLOOKUP(B8,[2]Sheet1!$B$2:$H$708,7,0)) -> 1.1 | I8: =IF(B8="","",VLOOKUP(B8,[2]Sheet1!$B$2:$I$708,8,0)) -> 3 | K8: =IF(B8="","",VLOOKUP(L8,[3]Sheet1!$B$2:$J$5000,3,0)) -> 29094100 | L8: =IF([1]Sheet!$J8="","",[1]Sheet!$J8) -> BROTHER GT-3 PRE-TREATMENT (16 L) | N8: =IF(B8="","",VLOOKUP(L8,[3]Sheet1!$B$2:$J$5000,2,0)) -> BUC | O8: =IF([1]Sheet!$K8="","",[1]Sheet!$K8) -> 3 | P8: =IF([1]Sheet!$M8="","",[1]Sheet!$M8) -> 2140.8 | Q8: =IF(ISNA(IF(B8="","",VLOOKUP(L8,[3]Sheet1!$B$2:$J$5000,9,0)*O8)),0,(IF(B8="","",VLOOKUP(L8,[3]Sheet1!$B$2:$J$5000,9,0)*O8))) -> 0 | R8: =IF([1]Sheet!$N8="","",[1]Sheet!$N8) -> 6422.4
A9: =IF([1]Sheet!$E9="","",[1]Sheet!$E9) -> 43879 | B9: =IF([1]Sheet!$A9="","",[1]Sheet!$A9) -> BROTHER INT INDUSTRIEMASCHINEN GMBH | C9: =IF(B9="","",VLOOKUP(B9,[2]Sheet1!$B$2:$C$708,2,0)) -> DE814895445 | D9: =IF(B9="","",VLOOKUP(B9,[2]Sheet1!$B$2:$D$708,3,0)) -> JP | E9: =IF(B9="","",VLOOKUP(B9,[2]Sheet1!$B$2:$E$708,4,0)) -> DE | F9: =IF(B9="","",VLOOKUP(B9,[2]Sheet1!$B$2:$F$708,5,0)) -> EXW | G9: =IF(B9="","",VLOOKUP(B9,[2]Sheet1!$B$2:$G$708,6,0)) -> 1 | H9: =IF(B9="","",VLOOKUP(B9,[2]Sheet1!$B$2:$H$708,7,0)) -> 1.1 | I9: =IF(B9="","",VLOOKUP(B9,[2]Sheet1!$B$2:$I$708,8,0)) -> 3 | K9: =IF(B9="","",VLOOKUP(L9,[3]Sheet1!$B$2:$J$5000,3,0)) -> 84433900 | L9: =IF([1]Sheet!$J9="","",[1]Sheet!$J9) -> BROTHER GT-361 PRINTER | N9: =IF(B9="","",VLOOKUP(L9,[3]Sheet1!$B$2:$J$5000,2,0)) -> BUC | O9: =IF([1]Sheet!$K9="","",[1]Sheet!$K9) -> 3 | P9: =IF([1]Sheet!$M9="","",[1]Sheet!$M9) -> 29603.76 | Q9: =IF(ISNA(IF(B9="","",VLOOKUP(L9,[3]Sheet1!$B$2:$J$5000,9,0)*O9)),0,(IF(B9="","",VLOOKUP(L9,[3]Sheet1!$B$2:$J$5000,9,0)*O9))) -> 277.5 | R9: =IF([1]Sheet!$N9="","",[1]Sheet!$N9) -> 88811.28
A10: =IF([1]Sheet!$E10="","",[1]Sheet!$E10) -> 43865 | B10: =IF([1]Sheet!$A10="","",[1]Sheet!$A10) -> BROTHER INT INDUSTRIEMASCHINEN GMBH | C10: =IF(B10="","",VLOOKUP(B10,[2]Sheet1!$B$2:$C$708,2,0)) -> DE814895445 | D10: =IF(B10="","",VLOOKUP(B10,[2]Sheet1!$B$2:$D$708,3,0)) -> JP | E10: =IF(B10="","",VLOOKUP(B10,[2]Sheet1!$B$2:$E$708,4,0)) -> DE | F10: =IF(B10="","",VLOOKUP(B10,[2]Sheet1!$B$2:$F$708,5,0)) -> EXW | G10: =IF(B10="","",VLOOKUP(B10,[2]Sheet1!$B$2:$G$708,6,0)) -> 1 | H10: =IF(B10="","",VLOOKUP(B10,[2]Sheet1!$B$2:$H$708,7,0)) -> 1.1 | I10: =IF(B10="","",VLOOKUP(B10,[2]Sheet1!$B$2:$I$708,8,0)) -> 3 | K10: =IF(B10="","",VLOOKUP(L10,[3]Sheet1!$B$2:$J$5000,3,0)) -> 34022090 | L10: =IF([1]Sheet!$J10="","",[1]Sheet!$J10) -> BROTHER GTX CLEANING SOL GCX-4E02 | N10: =IF(B10="","",VLOOKUP(L10,[3]Sheet1!$B$2:$J$5000,2,0)) -> BUC | O10: =IF([1]Sheet!$K10="","",[1]Sheet!$K10) -> 6 | P10: =IF([1]Sheet!$M10="","",[1]Sheet!$M10) -> 264.96 | Q10: =IF(ISNA(IF(B10="","",VLOOKUP(L10,[3]Sheet1!$B$2:$J$5000,9,0)*O10)),0,(IF(B10="","",VLOOKUP(L10,[3]Sheet1!$B$2:$J$5000,9,0)*O10))) -> 24.6 | R10: =IF([1]Sheet!$N10="","",[1]Sheet!$N10) -> 1589.76
A11: =IF([1]Sheet!$E11="","",[1]Sheet!$E11) -> 43865 | B11: =IF([1]Sheet!$A11="","",[1]Sheet!$A11) -> BROTHER INT INDUSTRIEMASCHINEN GMBH | C11: =IF(B11="","",VLOOKUP(B11,[2]Sheet1!$B$2:$C$708,2,0)) -> DE814895445 | D11: =IF(B11="","",VLOOKUP(B11,[2]Sheet1!$B$2:$D$708,3,0)) -> JP | E11: =IF(B11="","",VLOOKUP(B11,[2]Sheet1!$B$2:$E$708,4,0)) -> DE | F11: =IF(B11="","",VLOOKUP(B11,[2]Sheet1!$B$2:$F$708,5,0)) -> EXW | G11: =IF(B11="","",VLOOKUP(B11,[2]Sheet1!$B$2:$G$708,6,0)) -> 1 | H11: =IF(B11="","",VLOOKUP(B11,[2]Sheet1!$B$2:$H$708,7,0)) -> 1.1 | I11: =IF(B11="","",VLOOKUP(B11,[2]Sheet1!$B$2:$I$708,8,0)) -> 3 | K11: =IF(B11="","",VLOOKUP(L11,[3]Sheet1!$B$2:$J$5000,3,0)) -> 32151900 | L11: =IF([1]Sheet!$J11="","",[1]Sheet!$J11) -> BROTHER GTX INK GCX-4C70 CYAN 700cc | N11: =IF(B11="","",VLOOKUP(L11,[3]Sheet1!$B$2:$J$5000,2,0)) -> BUC | O11: =IF([1]Sheet!$K11="","",[1]Sheet!$K11) -> 4 | P11: =IF([1]Sheet!$M11="","",[1]Sheet!$M11) -> 668.64 | Q11: =IF(ISNA(IF(B11="","",VLOOKUP(L11,[3]Sheet1!$B$2:$J$5000,9,0)*O11)),0,(IF(B11="","",VLOOKUP(L11,[3]Sheet1!$B$2:$J$5000,9,0)*O11))) -> 4.2 | R11: =IF([1]Sheet!$N11="","",[1]Sheet!$N11) -> 2674.56
A12: =IF([1]Sheet!$E12="","",[1]Sheet!$E12) -> 43865 | B12: =IF([1]Sheet!$A12="","",[1]Sheet!$A12) -> BROTHER INT INDUSTRIEMASCHINEN GMBH | C12: =IF(B12="","",VLOOKUP(B12,[2]Sheet1!$B$2:$C$708,2,0)) -> DE814895445 | D12: =IF(B12="","",VLOOKUP(B12,[2]Sheet1!$B$2:$D$708,3,0)) -> JP | E12: =IF(B12="","",VLOOKUP(B12,[2]Sheet1!$B$2:$E$708,4,0)) -> DE | F12: =IF(B12="","",VLOOKUP(B12,[2]Sheet1!$B$2:$F$708,5,0)) -> EXW | G12: =IF(B12="","",VLOOKUP(B12,[2]Sheet1!$B$2:$G$708,6,0)) -> 1 | H12: =IF(B12="","",VLOOKUP(B12,[2]Sheet1!$B$2:$H$708,7,0)) -> 1.1 | I12: =IF(B12="","",VLOOKUP(B12,[2]Sheet1!$B$2:$I$708,8,0)) -> 3 | K12: =IF(B12="","",VLOOKUP(L12,[3]Sheet1!$B$2:$J$5000,3,0)) -> 32151100 | L12: =IF([1]Sheet!$J12="","",[1]Sheet!$J12) -> BROTHER GTX INK GCX-4M70 MAGENTA 700cc | N12: =IF(B12="","",VLOOKUP(L12,[3]Sheet1!$B$2:$J$5000,2,0)) -> BUC | O12: =IF([1]Sheet!$K12="","",[1]Sheet!$K12) -> 2 | P12: =IF([1]Sheet!$M12="","",[1]Sheet!$M12) -> 668.64 | Q12: =IF(ISNA(IF(B12="","",VLOOKUP(L12,[3]Sheet1!$B$2:$J$5000,9,0)*O12)),0,(IF(B12="","",VLOOKUP(L12,[3]Sheet1!$B$2:$J$5000,9,0)*O12))) -> 2.7 | R12: =IF([1]Sheet!$N12="","",[1]Sheet!$N12) -> 1337.28
A13: =IF([1]Sheet!$E13="","",[1]Sheet!$E13) -> 43865 | B13: =IF([1]Sheet!$A13="","",[1]Sheet!$A13) -> BROTHER INT INDUSTRIEMASCHINEN GMBH | C13: =IF(B13="","",VLOOKUP(B13,[2]Sheet1!$B$2:$C$708,2,0)) -> DE814895445 | D13: =IF(B13="","",VLOOKUP(B13,[2]Sheet1!$B$2:$D$708,3,0)) -> JP | E13: =IF(B13="","",VLOOKUP(B13,[2]Sheet1!$B$2:$E$708,4,0)) -> DE | F13: =IF(B13="","",VLOOKUP(B13,[2]Sheet1!$B$2:$F$708,5,0)) -> EXW | G13: =IF(B13="","",VLOOKUP(B13,[2]Sheet1!$B$2:$G$708,6,0)) -> 1 | H13: =IF(B13="","",VLOOKUP(B13,[2]Sheet1!$B$2:$H$708,7,0)) -> 1.1 | I13: =IF(B13="","",VLOOKUP(B13,[2]Sheet1!$B$2:$I$708,8,0)) -> 3 | K13: =IF(B13="","",VLOOKUP(L13,[3]Sheet1!$B$2:$J$5000,3,0)) -> 32151900 | L13: =IF([1]Sheet!$J13="","",[1]Sheet!$J13) -> BROTHER GTX INK GCX-4W70 WHITE (2 x 700cc) | N13: =IF(B13="","",VLOOKUP(L13,[3]Sheet1!$B$2:$J$5000,2,0)) -> BUC | O13: =IF([1]Sheet!$K13="","",[1]Sheet!$K13) -> 6 | P13: =IF([1]Sheet!$M13="","",[1]Sheet!$M13) -> 1176 | Q13: =IF(ISNA(IF(B13="","",VLOOKUP(L13,[3]Sheet1!$B$2:$J$5000,9,0)*O13)),0,(IF(B13="","",VLOOKUP(L13,[3]Sheet1!$B$2:$J$5000,9,0)*O13))) -> 17.4 | R13: =IF([1]Sheet!$N13="","",[1]Sheet!$N13) -> 7056
A14: =IF([1]Sheet!$E14="","",[1]Sheet!$E14) -> 43887 | B14: =IF([1]Sheet!$A14="","",[1]Sheet!$A14) -> BROTHER INT INDUSTRIEMASCHINEN GMBH | C14: =IF(B14="","",VLOOKUP(B14,[2]Sheet1!$B$2:$C$708,2,0)) -> DE814895445 | D14: =IF(B14="","",VLOOKUP(B14,[2]Sheet1!$B$2:$D$708,3,0)) -> JP | E14: =IF(B14="","",VLOOKUP(B14,[2]Sheet1!$B$2:$E$708,4,0)) -> DE | F14: =IF(B14="","",VLOOKUP(B14,[2]Sheet1!$B$2:$F$708,5,0)) -> EXW | G14: =IF(B14="","",VLOOKUP(B14,[2]Sheet1!$B$2:$G$708,6,0)) -> 1 | H14: =IF(B14="","",VLOOKUP(B14,[2]Sheet1!$B$2:$H$708,7,0)) -> 1.1 | I14: =IF(B14="","",VLOOKUP(B14,[2]Sheet1!$B$2:$I$708,8,0)) -> 3 | K14: =IF(B14="","",VLOOKUP(L14,[3]Sheet1!$B$2:$J$5000,3,0)) -> 32151900 | L14: =IF([1]Sheet!$J14="","",[1]Sheet!$J14) -> BROTHER GTX INK GCX-4W70 WHITE (2 x 700cc) | N14: =IF(B14="","",VLOOKUP(L14,[3]Sheet1!$B$2:$J$5000,2,0)) -> BUC | O14: =IF([1]Sheet!$K14="","",[1]Sheet!$K14) -> 30 | P14: =IF([1]Sheet!$M14="","",[1]Sheet!$M14) -> 1119.9 | Q14: =IF(ISNA(IF(B14="","",VLOOKUP(L14,[3]Sheet1!$B$2:$J$5000,9,0)*O14)),0,(IF(B14="","",VLOOKUP(L14,[3]Sheet1!$B$2:$J$5000,9,0)*O14))) -> 87 | R14: =IF([1]Sheet!$N14="","",[1]Sheet!$N14) -> 33597.12
A15: =IF([1]Sheet!$E15="","",[1]Sheet!$E15) -> 43887 | B15: =IF([1]Sheet!$A15="","",[1]Sheet!$A15) -> BROTHER INT INDUSTRIEMASCHINEN GMBH | C15: =IF(B15="","",VLOOKUP(B15,[2]Sheet1!$B$2:$C$708,2,0)) -> DE814895445 | D15: =IF(B15="","",VLOOKUP(B15,[2]Sheet1!$B$2:$D$708,3,0)) -> JP | E15: =IF(B15="","",VLOOKUP(B15,[2]Sheet1!$B$2:$E$708,4,0)) -> DE | F15: =IF(B15="","",VLOOKUP(B15,[2]Sheet1!$B$2:$F$708,5,0)) -> EXW | G15: =IF(B15="","",VLOOKUP(B15,[2]Sheet1!$B$2:$G$708,6,0)) -> 1 | H15: =IF(B15="","",VLOOKUP(B15,[2]Sheet1!$B$2:$H$708,7,0)) -> 1.1 | I15: =IF(B15="","",VLOOKUP(B15,[2]Sheet1!$B$2:$I$708,8,0)) -> 3 | K15: =IF(B15="","",VLOOKUP(L15,[3]Sheet1!$B$2:$J$5000,3,0)) -> 32151100 | L15: =IF([1]Sheet!$J15="","",[1]Sheet!$J15) -> BROTHER GTX INK GCX-4Y70 YELLOW 700cc | N15: =IF(B15="","",VLOOKUP(L15,[3]Sheet1!$B$2:$J$5000,2,0)) -> BUC | O15: =IF([1]Sheet!$K15="","",[1]Sheet!$K15) -> 2 | P15: =IF([1]Sheet!$M15="","",[1]Sheet!$M15) -> 669.74 | Q15: =IF(ISNA(IF(B15="","",VLOOKUP(L15,[3]Sheet1!$B$2:$J$5000,9,0)*O15)),0,(IF(B15="","",VLOOKUP(L15,[3]Sheet1!$B$2:$J$5000,9,0)*O15))) -> 2.7 | R15: =IF([1]Sheet!$N15="","",[1]Sheet!$N15) -> 1339.48
A16: =IF([1]Sheet!$E16="","",[1]Sheet!$E16) -> 43865 | B16: =IF([1]Sheet!$A16="","",[1]Sheet!$A16) -> BROTHER INT INDUSTRIEMASCHINEN GMBH | C16: =IF(B16="","",VLOOKUP(B16,[2]Sheet1!$B$2:$C$708,2,0)) -> DE814895445 | D16: =IF(B16="","",VLOOKUP(B16,[2]Sheet1!$B$2:$D$708,3,0)) -> JP | E16: =IF(B16="","",VLOOKUP(B16,[2]Sheet1!$B$2:$E$708,4,0)) -> DE | F16: =IF(B16="","",VLOOKUP(B16,[2]Sheet1!$B$2:$F$708,5,0)) -> EXW | G16: =IF(B16="","",VLOOKUP(B16,[2]Sheet1!$B$2:$G$708,6,0)) -> 1 | H16: =IF(B16="","",VLOOKUP(B16,[2]Sheet1!$B$2:$H$708,7,0)) -> 1.1 | I16: =IF(B16="","",VLOOKUP(B16,[2]Sheet1!$B$2:$I$708,8,0)) -> 3 | K16: =IF(B16="","",VLOOKUP(L16,[3]Sheet1!$B$2:$J$5000,3,0)) -> 34022090 | L16: =IF([1]Sheet!$J16="","",[1]Sheet!$J16) -> BROTHER MAINTENANCE SOL 5L | N16: =IF(B16="","",VLOOKUP(L16,[3]Sheet1!$B$2:$J$5000,2,0)) -> BUC | O16: =IF([1]Sheet!$K16="","",[1]Sheet!$K16) -> 4 | P16: =IF([1]Sheet!$M16="","",[1]Sheet!$M16) -> 391.68 | Q16: =IF(ISNA(IF(B16="","",VLOOKUP(L16,[3]Sheet1!$B$2:$J$5000,9,0)*O16)),0,(IF(B16="","",VLOOKUP(L16,[3]Sheet1!$B$2:$J$5000,9,0)*O16))) -> 15.52 | R16: =IF([1]Sheet!$N16="","",[1]Sheet!$N16) -> 1566.72
A17: =IF([1]Sheet!$E17="","",[1]Sheet!$E17) -> 43865 | B17: =IF([1]Sheet!$A17="","",[1]Sheet!$A17) -> BROTHER INT INDUSTRIEMASCHINEN GMBH | C17: =IF(B17="","",VLOOKUP(B17,[2]Sheet1!$B$2:$C$708,2,0)) -> DE814895445 | D17: =IF(B17="","",VLOOKUP(B17,[2]Sheet1!$B$2:$D$708,3,0)) -> JP | E17: =IF(B17="","",VLOOKUP(B17,[2]Sheet1!$B$2:$E$708,4,0)) -> DE | F17: =IF(B17="","",VLOOKUP(B17,[2]Sheet1!$B$2:$F$708,5,0)) -> EXW | G17: =IF(B17="","",VLOOKUP(B17,[2]Sheet1!$B$2:$G$708,6,0)) -> 1 | H17: =IF(B17="","",VLOOKUP(B17,[2]Sheet1!$B$2:$H$708,7,0)) -> 1.1 | I17: =IF(B17="","",VLOOKUP(B17,[2]Sheet1!$B$2:$I$708,8,0)) -> 3 | K17: =IF(B17="","",VLOOKUP(L17,[3]Sheet1!$B$2:$J$5000,3,0)) -> 84439990 | L17: =IF([1]Sheet!$J17="","",[1]Sheet!$J17) -> BROTHER PRINT HEAD IH2DS GT-3 | N17: =IF(B17="","",VLOOKUP(L17,[3]Sheet1!$B$2:$J$5000,2,0)) -> BUC | O17: =IF([1]Sheet!$K17="","",[1]Sheet!$K17) -> 2 | P17: =IF([1]Sheet!$M17="","",[1]Sheet!$M17) -> 3192 | Q17: =IF(ISNA(IF(B17="","",VLOOKUP(L17,[3]Sheet1!$B$2:$J$5000,9,0)*O17)),0,(IF(B17="","",VLOOKUP(L17,[3]Sheet1!$B$2:$J$5000,9,0)*O17))) -> 0 | R17: =IF([1]Sheet!$N17="","",[1]Sheet!$N17) -> 6384
A18: =IF([1]Sheet!$E18="","",[1]Sheet!$E18) -> 43887 | B18: =IF([1]Sheet!$A18="","",[1]Sheet!$A18) -> BROTHER INT INDUSTRIEMASCHINEN GMBH | C18: =IF(B18="","",VLOOKUP(B18,[2]Sheet1!$B$2:$C$708,2,0)) -> DE814895445 | D18: =IF(B18="","",VLOOKUP(B18,[2]Sheet1!$B$2:$D$708,3,0)) -> JP | E18: =IF(B18="","",VLOOKUP(B18,[2]Sheet1!$B$2:$E$708,4,0)) -> DE | F18: =IF(B18="","",VLOOKUP(B18,[2]Sheet1!$B$2:$F$708,5,0)) -> EXW | G18: =IF(B18="","",VLOOKUP(B18,[2]Sheet1!$B$2:$G$708,6,0)) -> 1 | H18: =IF(B18="","",VLOOKUP(B18,[2]Sheet1!$B$2:$H$708,7,0)) -> 1.1 | I18: =IF(B18="","",VLOOKUP(B18,[2]Sheet1!$B$2:$I$708,8,0)) -> 3 | K18: =IF(B18="","",VLOOKUP(L18,[3]Sheet1!$B$2:$J$5000,3,0)) -> 84439990 | L18: =IF([1]Sheet!$J18="","",[1]Sheet!$J18) -> BROTHER PRINT HEAD IH2DS GT-3 | N18: =IF(B18="","",VLOOKUP(L18,[3]Sheet1!$B$2:$J$5000,2,0)) -> BUC | O18: =IF([1]Sheet!$K18="","",[1]Sheet!$K18) -> 2 | P18: =IF([1]Sheet!$M18="","",[1]Sheet!$M18) -> 3197.25 | Q18: =IF(ISNA(IF(B18="","",VLOOKUP(L18,[3]Sheet1!$B$2:$J$5000,9,0)*O18)),0,(IF(B18="","",VLOOKUP(L18,[3]Sheet1!$B$2:$J$5000,9,0)*O18))) -> 0 | R18: =IF([1]Sheet!$N18="","",[1]Sheet!$N18) -> 6394.51
A19: =IF([1]Sheet!$E19="","",[1]Sheet!$E19) -> 43887 | B19: =IF([1]Sheet!$A19="","",[1]Sheet!$A19) -> BROTHER INT INDUSTRIEMASCHINEN GMBH | C19: =IF(B19="","",VLOOKUP(B19,[2]Sheet1!$B$2:$C$708,2,0)) -> DE814895445 | D19: =IF(B19="","",VLOOKUP(B19,[2]Sheet1!$B$2:$D$708,3,0)) -> JP | E19: =IF(B19="","",VLOOKUP(B19,[2]Sheet1!$B$2:$E$708,4,0)) -> DE | F19: =IF(B19="","",VLOOKUP(B19,[2]Sheet1!$B$2:$F$708,5,0)) -> EXW | G19: =IF(B19="","",VLOOKUP(B19,[2]Sheet1!$B$2:$G$708,6,0)) -> 1 | H19: =IF(B19="","",VLOOKUP(B19,[2]Sheet1!$B$2:$H$708,7,0)) -> 1.1 | I19: =IF(B19="","",VLOOKUP(B19,[2]Sheet1!$B$2:$I$708,8,0)) -> 3 | K19: =IF(B19="","",VLOOKUP(L19,[3]Sheet1!$B$2:$J$5000,3,0)) -> 84439990 | L19: =IF([1]Sheet!$J19="","",[1]Sheet!$J19) -> BROTHER SCH-807067 TEFLON SLIDER | N19: =IF(B19="","",VLOOKUP(L19,[3]Sheet1!$B$2:$J$5000,2,0)) -> BUC | O19: =IF([1]Sheet!$K19="","",[1]Sheet!$K19) -> 4 | P19: =IF([1]Sheet!$M19="","",[1]Sheet!$M19) -> 59.62 | Q19: =IF(ISNA(IF(B19="","",VLOOKUP(L19,[3]Sheet1!$B$2:$J$5000,9,0)*O19)),0,(IF(B19="","",VLOOKUP(L19,[3]Sheet1!$B$2:$J$5000,9,0)*O19))) -> 0 | R19: =IF([1]Sheet!$N19="","",[1]Sheet!$N19) -> 238.47
A20: =IF([1]Sheet!$E20="","",[1]Sheet!$E20) -> 43887 | B20: =IF([1]Sheet!$A20="","",[1]Sheet!$A20) -> BROTHER INT INDUSTRIEMASCHINEN GMBH | C20: =IF(B20="","",VLOOKUP(B20,[2]Sheet1!$B$2:$C$708,2,0)) -> DE814895445 | D20: =IF(B20="","",VLOOKUP(B20,[2]Sheet1!$B$2:$D$708,3,0)) -> JP | E20: =IF(B20="","",VLOOKUP(B20,[2]Sheet1!$B$2:$E$708,4,0)) -> DE | F20: =IF(B20="","",VLOOKUP(B20,[2]Sheet1!$B$2:$F$708,5,0)) -> EXW | G20: =IF(B20="","",VLOOKUP(B20,[2]Sheet1!$B$2:$G$708,6,0)) -> 1 | H20: =IF(B20="","",VLOOKUP(B20,[2]Sheet1!$B$2:$H$708,7,0)) -> 1.1 | I20: =IF(B20="","",VLOOKUP(B20,[2]Sheet1!$B$2:$I$708,8,0)) -> 3 | K20: =IF(B20="","",VLOOKUP(L20,[3]Sheet1!$B$2:$J$5000,3,0)) -> 84439990 | L20: =IF([1]Sheet!$J20="","",[1]Sheet!$J20) -> BROTHER WIPER CLEANER (2 Pcs) | N20: =IF(B20="","",VLOOKUP(L20,[3]Sheet1!$B$2:$J$5000,2,0)) -> BUC | O20: =IF([1]Sheet!$K20="","",[1]Sheet!$K20) -> 4 | P20: =IF([1]Sheet!$M20="","",[1]Sheet!$M20) -> 55.53 | Q20: =IF(ISNA(IF(B20="","",VLOOKUP(L20,[3]Sheet1!$B$2:$J$5000,9,0)*O20)),0,(IF(B20="","",VLOOKUP(L20,[3]Sheet1!$B$2:$J$5000,9,0)*O20))) -> 0 | R20: =IF([1]Sheet!$N20="","",[1]Sheet!$N20) -> 222.12
A21: =IF([1]Sheet!$E21="","",[1]Sheet!$E21) -> 43865 | B21: =IF([1]Sheet!$A21="","",[1]Sheet!$A21) -> BROTHER INT INDUSTRIEMASCHINEN GMBH | C21: =IF(B21="","",VLOOKUP(B21,[2]Sheet1!$B$2:$C$708,2,0)) -> DE814895445 | D21: =IF(B21="","",VLOOKUP(B21,[2]Sheet1!$B$2:$D$708,3,0)) -> JP | E21: =IF(B21="","",VLOOKUP(B21,[2]Sheet1!$B$2:$E$708,4,0)) -> DE | F21: =IF(B21="","",VLOOKUP(B21,[2]Sheet1!$B$2:$F$708,5,0)) -> EXW | G21: =IF(B21="","",VLOOKUP(B21,[2]Sheet1!$B$2:$G$708,6,0)) -> 1 | H21: =IF(B21="","",VLOOKUP(B21,[2]Sheet1!$B$2:$H$708,7,0)) -> 1.1 | I21: =IF(B21="","",VLOOKUP(B21,[2]Sheet1!$B$2:$I$708,8,0)) -> 3 | K21: =IF(B21="","",VLOOKUP(L21,[3]Sheet1!$B$2:$J$5000,3,0)) -> 84439990 | L21: =IF([1]Sheet!$J21="","",[1]Sheet!$J21) -> BROTHER WIPER CLEANER ASSY | N21: =IF(B21="","",VLOOKUP(L21,[3]Sheet1!$B$2:$J$5000,2,0)) -> BUC | O21: =IF([1]Sheet!$K21="","",[1]Sheet!$K21) -> 8 | P21: =IF([1]Sheet!$M21="","",[1]Sheet!$M21) -> 60.34 | Q21: =IF(ISNA(IF(B21="","",VLOOKUP(L21,[3]Sheet1!$B$2:$J$5000,9,0)*O21)),0,(IF(B21="","",VLOOKUP(L21,[3]Sheet1!$B$2:$J$5000,9,0)*O21))) -> 0 | R21: =IF([1]Sheet!$N21="","",[1]Sheet!$N21) -> 482.69
A22: =IF([1]Sheet!$E22="","",[1]Sheet!$E22) -> 43888 | B22: =IF([1]Sheet!$A22="","",[1]Sheet!$A22) -> JETBEST CORPORATION | C22: =IF(B22="","",VLOOKUP(B22,[2]Sheet1!$B$2:$C$708,2,0)) -> ATU40607009 | D22: =IF(B22="","",VLOOKUP(B22,[2]Sheet1!$B$2:$D$708,3,0)) -> TW | E22: =IF(B22="","",VLOOKUP(B22,[2]Sheet1!$B$2:$E$708,4,0)) -> AT | F22: =IF(B22="","",VLOOKUP(B22,[2]Sheet1!$B$2:$F$708,5,0)) -> EXW | G22: =IF(B22="","",VLOOKUP(B22,[2]Sheet1!$B$2:$G$708,6,0)) -> 1 | H22: =IF(B22="","",VLOOKUP(B22,[2]Sheet1!$B$2:$H$708,7,0)) -> 1.1 | I22: =IF(B22="","",VLOOKUP(B22,[2]Sheet1!$B$2:$I$708,8,0)) -> 3 | K22: =IF(B22="","",VLOOKUP(L22,[3]Sheet1!$B$2:$J$5000,3,0)) -> 32151100 | L22: =IF([1]Sheet!$J22="","",[1]Sheet!$J22) -> ECO-V2 INK 1L BK | N22: =IF(B22="","",VLOOKUP(L22,[3]Sheet1!$B$2:$J$5000,2,0)) -> BUC | O22: =IF([1]Sheet!$K22="","",[1]Sheet!$K22) -> 24 | P22: =IF([1]Sheet!$M22="","",[1]Sheet!$M22) -> 83.95 | Q22: =IF(ISNA(IF(B22="","",VLOOKUP(L22,[3]Sheet1!$B$2:$J$5000,9,0)*O22)),0,(IF(B22="","",VLOOKUP(L22,[3]Sheet1!$B$2:$J$5000,9,0)*O22))) -> 16.32 | R22: =IF([1]Sheet!$N22="","",[1]Sheet!$N22) -> 2014.88
A23: =IF([1]Sheet!$E23="","",[1]Sheet!$E23) -> 43888 | B23: =IF([1]Sheet!$A23="","",[1]Sheet!$A23) -> JETBEST CORPORATION | C23: =IF(B23="","",VLOOKUP(B23,[2]Sheet1!$B$2:$C$708,2,0)) -> ATU40607009 | D23: =IF(B23="","",VLOOKUP(B23,[2]Sheet1!$B$2:$D$708,3,0)) -> TW | E23: =IF(B23="","",VLOOKUP(B23,[2]Sheet1!$B$2:$E$708,4,0)) -> AT | F23: =IF(B23="","",VLOOKUP(B23,[2]Sheet1!$B$2:$F$708,5,0)) -> EXW | G23: =IF(B23="","",VLOOKUP(B23,[2]Sheet1!$B$2:$G$708,6,0)) -> 1 | H23: =IF(B23="","",VLOOKUP(B23,[2]Sheet1!$B$2:$H$708,7,0)) -> 1.1 | I23: =IF(B23="","",VLOOKUP(B23,[2]Sheet1!$B$2:$I$708,8,0)) -> 3 | K23: =IF(B23="","",VLOOKUP(L23,[3]Sheet1!$B$2:$J$5000,3,0)) -> 32151900 | L23: =IF([1]Sheet!$J23="","",[1]Sheet!$J23) -> ECO-V2 INK 1L CY | N23: =IF(B23="","",VLOOKUP(L23,[3]Sheet1!$B$2:$J$5000,2,0)) -> BUC | O23: =IF([1]Sheet!$K23="","",[1]Sheet!$K23) -> 12 | P23: =IF([1]Sheet!$M23="","",[1]Sheet!$M23) -> 83.95 | Q23: =IF(ISNA(IF(B23="","",VLOOKUP(L23,[3]Sheet1!$B$2:$J$5000,9,0)*O23)),0,(IF(B23="","",VLOOKUP(L23,[3]Sheet1!$B$2:$J$5000,9,0)*O23))) -> 8.16 | R23: =IF([1]Sheet!$N23="","",[1]Sheet!$N23) -> 1007.44
A24: =IF([1]Sheet!$E24="","",[1]Sheet!$E24) -> 43888 | B24: =IF([1]Sheet!$A24="","",[1]Sheet!$A24) -> JETBEST CORPORATION | C24: =IF(B24="","",VLOOKUP(B24,[2]Sheet1!$B$2:$C$708,2,0)) -> ATU40607009 | D24: =IF(B24="","",VLOOKUP(B24,[2]Sheet1!$B$2:$D$708,3,0)) -> TW | E24: =IF(B24="","",VLOOKUP(B24,[2]Sheet1!$B$2:$E$708,4,0)) -> AT | F24: =IF(B24="","",VLOOKUP(B24,[2]Sheet1!$B$2:$F$708,5,0)) -> EXW | G24: =IF(B24="","",VLOOKUP(B24,[2]Sheet1!$B$2:$G$708,6,0)) -> 1 | H24: =IF(B24="","",VLOOKUP(B24,[2]Sheet1!$B$2:$H$708,7,0)) -> 1.1 | I24: =IF(B24="","",VLOOKUP(B24,[2]Sheet1!$B$2:$I$708,8,0)) -> 3 | K24: =IF(B24="","",VLOOKUP(L24,[3]Sheet1!$B$2:$J$5000,3,0)) -> 32151900 | L24: =IF([1]Sheet!$J24="","",[1]Sheet!$J24) -> ECO-V2 INK 1L LC | N24: =IF(B24="","",VLOOKUP(L24,[3]Sheet1!$B$2:$J$5000,2,0)) -> BUC | O24: =IF([1]Sheet!$K24="","",[1]Sheet!$K24) -> 4 | P24: =IF([1]Sheet!$M24="","",[1]Sheet!$M24) -> 83.95 | Q24: =IF(ISNA(IF(B24="","",VLOOKUP(L24,[3]Sheet1!$B$2:$J$5000,9,0)*O24)),0,(IF(B24="","",VLOOKUP(L24,[3]Sheet1!$B$2:$J$5000,9,0)*O24))) -> 2.72 | R24: =IF([1]Sheet!$N24="","",[1]Sheet!$N24) -> 335.81
A25: =IF([1]Sheet!$E25="","",[1]Sheet!$E25) -> 43888 | B25: =IF([1]Sheet!$A25="","",[1]Sheet!$A25) -> JETBEST CORPORATION | C25: =IF(B25="","",VLOOKUP(B25,[2]Sheet1!$B$2:$C$708,2,0)) -> ATU40607009 | D25: =IF(B25="","",VLOOKUP(B25,[2]Sheet1!$B$2:$D$708,3,0)) -> TW | E25: =IF(B25="","",VLOOKUP(B25,[2]Sheet1!$B$2:$E$708,4,0)) -> AT | F25: =IF(B25="","",VLOOKUP(B25,[2]Sheet1!$B$2:$F$708,5,0)) -> EXW | G25: =IF(B25="","",VLOOKUP(B25,[2]Sheet1!$B$2:$G$708,6,0)) -> 1 | H25: =IF(B25="","",VLOOKUP(B25,[2]Sheet1!$B$2:$H$708,7,0)) -> 1.1 | I25: =IF(B25="","",VLOOKUP(B25,[2]Sheet1!$B$2:$I$708,8,0)) -> 3 | K25: =IF(B25="","",VLOOKUP(L25,[3]Sheet1!$B$2:$J$5000,3,0)) -> 32151100 | L25: =IF([1]Sheet!$J25="","",[1]Sheet!$J25) -> ECO-V2 INK 1L LK | N25: =IF(B25="","",VLOOKUP(L25,[3]Sheet1!$B$2:$J$5000,2,0)) -> BUC | O25: =IF([1]Sheet!$K25="","",[1]Sheet!$K25) -> 4 | P25: =IF([1]Sheet!$M25="","",[1]Sheet!$M25) -> 83.95 | Q25: =IF(ISNA(IF(B25="","",VLOOKUP(L25,[3]Sheet1!$B$2:$J$5000,9,0)*O25)),0,(IF(B25="","",VLOOKUP(L25,[3]Sheet1!$B$2:$J$5000,9,0)*O25))) -> 2.72 | R25: =IF([1]Sheet!$N25="","",[1]Sheet!$N25) -> 335.81
A26: =IF([1]Sheet!$E26="","",[1]Sheet!$E26) -> 43888 | B26: =IF([1]Sheet!$A26="","",[1]Sheet!$A26) -> JETBEST CORPORATION | C26: =IF(B26="","",VLOOKUP(B26,[2]Sheet1!$B$2:$C$708,2,0)) -> ATU40607009 | D26: =IF(B26="","",VLOOKUP(B26,[2]Sheet1!$B$2:$D$708,3,0)) -> TW | E26: =IF(B26="","",VLOOKUP(B26,[2]Sheet1!$B$2:$E$708,4,0)) -> AT | F26: =IF(B26="","",VLOOKUP(B26,[2]Sheet1!$B$2:$F$708,5,0)) -> EXW | G26: =IF(B26="","",VLOOKUP(B26,[2]Sheet1!$B$2:$G$708,6,0)) -> 1 | H26: =IF(B26="","",VLOOKUP(B26,[2]Sheet1!$B$2:$H$708,7,0)) -> 1.1 | I26: =IF(B26="","",VLOOKUP(B26,[2]Sheet1!$B$2:$I$708,8,0)) -> 3 | K26: =IF(B26="","",VLOOKUP(L26,[3]Sheet1!$B$2:$J$5000,3,0)) -> 32151900 | L26: =IF([1]Sheet!$J26="","",[1]Sheet!$J26) -> ECO-V2 INK 1L LM | N26: =IF(B26="","",VLOOKUP(L26,[3]Sheet1!$B$2:$J$5000,2,0)) -> BUC | O26: =IF([1]Sheet!$K26="","",[1]Sheet!$K26) -> 4 | P26: =IF([1]Sheet!$M26="","",[1]Sheet!$M26) -> 83.95 | Q26: =IF(ISNA(IF(B26="","",VLOOKUP(L26,[3]Sheet1!$B$2:$J$5000,9,0)*O26)),0,(IF(B26="","",VLOOKUP(L26,[3]Sheet1!$B$2:$J$5000,9,0)*O26))) -> 2.72 | R26: =IF([1]Sheet!$N26="","",[1]Sheet!$N26) -> 335.81
A27: =IF([1]Sheet!$E27="","",[1]Sheet!$E27) -> 43888 | B27: =IF([1]Sheet!$A27="","",[1]Sheet!$A27) -> JETBEST CORPORATION | C27: =IF(B27="","",VLOOKUP(B27,[2]Sheet1!$B$2:$C$708,2,0)) -> ATU40607009 | D27: =IF(B27="","",VLOOKUP(B27,[2]Sheet1!$B$2:$D$708,3,0)) -> TW | E27: =IF(B27="","",VLOOKUP(B27,[2]Sheet1!$B$2:$E$708,4,0)) -> AT | F27: =IF(B27="","",VLOOKUP(B27,[2]Sheet1!$B$2:$F$708,5,0)) -> EXW | G27: =IF(B27="","",VLOOKUP(B27,[2]Sheet1!$B$2:$G$708,6,0)) -> 1 | H27: =IF(B27="","",VLOOKUP(B27,[2]Sheet1!$B$2:$H$708,7,0)) -> 1.1 | I27: =IF(B27="","",VLOOKUP(B27,[2]Sheet1!$B$2:$I$708,8,0)) -> 3 | K27: =IF(B27="","",VLOOKUP(L27,[3]Sheet1!$B$2:$J$5000,3,0)) -> 32151900 | L27: =IF([1]Sheet!$J27="","",[1]Sheet!$J27) -> ECO-V2 INK 1L MG | N27: =IF(B27="","",VLOOKUP(L27,[3]Sheet1!$B$2:$J$5000,2,0)) -> BUC | O27: =IF([1]Sheet!$K27="","",[1]Sheet!$K27) -> 36 | P27: =IF([1]Sheet!$M27="","",[1]Sheet!$M27) -> 83.95 | Q27: =IF(ISNA(IF(B27="","",VLOOKUP(L27,[3]Sheet1!$B$2:$J$5000,9,0)*O27)),0,(IF(B27="","",VLOOKUP(L27,[3]Sheet1!$B$2:$J$5000,9,0)*O27))) -> 24.48 | R27: =IF([1]Sheet!$N27="","",[1]Sheet!$N27) -> 3022.32
A28: =IF([1]Sheet!$E28="","",[1]Sheet!$E28) -> 43888 | B28: =IF([1]Sheet!$A28="","",[1]Sheet!$A28) -> JETBEST CORPORATION | C28: =IF(B28="","",VLOOKUP(B28,[2]Sheet1!$B$2:$C$708,2,0)) -> ATU40607009 | D28: =IF(B28="","",VLOOKUP(B28,[2]Sheet1!$B$2:$D$708,3,0)) -> TW | E28: =IF(B28="","",VLOOKUP(B28,[2]Sheet1!$B$2:$E$708,4,0)) -> AT | F28: =IF(B28="","",VLOOKUP(B28,[2]Sheet1!$B$2:$F$708,5,0)) -> EXW | G28: =IF(B28="","",VLOOKUP(B28,[2]Sheet1!$B$2:$G$708,6,0)) -> 1 | H28: =IF(B28="","",VLOOKUP(B28,[2]Sheet1!$B$2:$H$708,7,0)) -> 1.1 | I28: =IF(B28="","",VLOOKUP(B28,[2]Sheet1!$B$2:$I$708,8,0)) -> 3 | K28: =IF(B28="","",VLOOKUP(L28,[3]Sheet1!$B$2:$J$5000,3,0)) -> 32151900 | L28: =IF([1]Sheet!$J28="","",[1]Sheet!$J28) -> ECO-V2 INK 1L YE | N28: =IF(B28="","",VLOOKUP(L28,[3]Sheet1!$B$2:$J$5000,2,0)) -> BUC | O28: =IF([1]Sheet!$K28="","",[1]Sheet!$K28) -> 36 | P28: =IF([1]Sheet!$M28="","",[1]Sheet!$M28) -> 83.95 | Q28: =IF(ISNA(IF(B28="","",VLOOKUP(L28,[3]Sheet1!$B$2:$J$5000,9,0)*O28)),0,(IF(B28="","",VLOOKUP(L28,[3]Sheet1!$B$2:$J$5000,9,0)*O28))) -> 24.48 | R28: =IF([1]Sheet!$N28="","",[1]Sheet!$N28) -> 3022.32
A29: =IF([1]Sheet!$E29="","",[1]Sheet!$E29) -> 43888 | B29: =IF([1]Sheet!$A29="","",[1]Sheet!$A29) -> JETBEST CORPORATION | C29: =IF(B29="","",VLOOKUP(B29,[2]Sheet1!$B$2:$C$708,2,0)) -> ATU40607009 | D29: =IF(B29="","",VLOOKUP(B29,[2]Sheet1!$B$2:$D$708,3,0)) -> TW | E29: =IF(B29="","",VLOOKUP(B29,[2]Sheet1!$B$2:$E$708,4,0)) -> AT | F29: =IF(B29="","",VLOOKUP(B29,[2]Sheet1!$B$2:$F$708,5,0)) -> EXW | G29: =IF(B29="","",VLOOKUP(B29,[2]Sheet1!$B$2:$G$708,6,0)) -> 1 | H29: =IF(B29="","",VLOOKUP(B29,[2]Sheet1!$B$2:$H$708,7,0)) -> 1.1 | I29: =IF(B29="","",VLOOKUP(B29,[2]Sheet1!$B$2:$I$708,8,0)) -> 3 | K29: =IF(B29="","",VLOOKUP(L29,[3]Sheet1!$B$2:$J$5000,3,0)) -> 32151100 | L29: =IF([1]Sheet!$J29="","",[1]Sheet!$J29) -> ECO-VISION INK 440 BK | N29: =IF(B29="","",VLOOKUP(L29,[3]Sheet1!$B$2:$J$5000,2,0)) -> BUC | O29: =IF([1]Sheet!$K29="","",[1]Sheet!$K29) -> 24 | P29: =IF([1]Sheet!$M29="","",[1]Sheet!$M29) -> 75.12 | Q29: =IF(ISNA(IF(B29="","",VLOOKUP(L29,[3]Sheet1!$B$2:$J$5000,9,0)*O29)),0,(IF(B29="","",VLOOKUP(L29,[3]Sheet1!$B$2:$J$5000,9,0)*O29))) -> 15.6 | R29: =IF([1]Sheet!$N29="","",[1]Sheet!$N29) -> 1802.79
A30: =IF([1]Sheet!$E30="","",[1]Sheet!$E30) -> 43888 | B30: =IF([1]Sheet!$A30="","",[1]Sheet!$A30) -> JETBEST CORPORATION | C30: =IF(B30="","",VLOOKUP(B30,[2]Sheet1!$B$2:$C$708,2,0)) -> ATU40607009 | D30: =IF(B30="","",VLOOKUP(B30,[2]Sheet1!$B$2:$D$708,3,0)) -> TW | E30: =IF(B30="","",VLOOKUP(B30,[2]Sheet1!$B$2:$E$708,4,0)) -> AT | F30: =IF(B30="","",VLOOKUP(B30,[2]Sheet1!$B$2:$F$708,5,0)) -> EXW | G30: =IF(B30="","",VLOOKUP(B30,[2]Sheet1!$B$2:$G$708,6,0)) -> 1 | H30: =IF(B30="","",VLOOKUP(B30,[2]Sheet1!$B$2:$H$708,7,0)) -> 1.1 | I30: =IF(B30="","",VLOOKUP(B30,[2]Sheet1!$B$2:$I$708,8,0)) -> 3 | K30: =IF(B30="","",VLOOKUP(L30,[3]Sheet1!$B$2:$J$5000,3,0)) -> 32151900 | L30: =IF([1]Sheet!$J30="","",[1]Sheet!$J30) -> ECO-VISION INK 440 CY | N30: =IF(B30="","",VLOOKUP(L30,[3]Sheet1!$B$2:$J$5000,2,0)) -> BUC | O30: =IF([1]Sheet!$K30="","",[1]Sheet!$K30) -> 36 | P30: =IF([1]Sheet!$M30="","",[1]Sheet!$M30) -> 75.12 | Q30: =IF(ISNA(IF(B30="","",VLOOKUP(L30,[3]Sheet1!$B$2:$J$5000,9,0)*O30)),0,(IF(B30="","",VLOOKUP(L30,[3]Sheet1!$B$2:$J$5000,9,0)*O30))) -> 22.32 | R30: =IF([1]Sheet!$N30="","",[1]Sheet!$N30) -> 2704.18
A31: =IF([1]Sheet!$E31="","",[1]Sheet!$E31) -> 43888 | B31: =IF([1]Sheet!$A31="","",[1]Sheet!$A31) -> JETBEST CORPORATION | C31: =IF(B31="","",VLOOKUP(B31,[2]Sheet1!$B$2:$C$708,2,0)) -> ATU40607009 | D31: =IF(B31="","",VLOOKUP(B31,[2]Sheet1!$B$2:$D$708,3,0)) -> TW | E31: =IF(B31="","",VLOOKUP(B31,[2]Sheet1!$B$2:$E$708,4,0)) -> AT | F31: =IF(B31="","",VLOOKUP(B31,[2]Sheet1!$B$2:$F$708,5,0)) -> EXW | G31: =IF(B31="","",VLOOKUP(B31,[2]Sheet1!$B$2:$G$708,6,0)) -> 1 | H31: =IF(B31="","",VLOOKUP(B31,[2]Sheet1!$B$2:$H$708,7,0)) -> 1.1 | I31: =IF(B31="","",VLOOKUP(B31,[2]Sheet1!$B$2:$I$708,8,0)) -> 3 | K31: =IF(B31="","",VLOOKUP(L31,[3]Sheet1!$B$2:$J$5000,3,0)) -> 32151900 | L31: =IF([1]Sheet!$J31="","",[1]Sheet!$J31) -> ECO-VISION INK 440 LC | N31: =IF(B31="","",VLOOKUP(L31,[3]Sheet1!$B$2:$J$5000,2,0)) -> BUC | O31: =IF([1]Sheet!$K31="","",[1]Sheet!$K31) -> 24 | P31: =IF([1]Sheet!$M31="","",[1]Sheet!$M31) -> 75.12 | Q31: =IF(ISNA(IF(B31="","",VLOOKUP(L31,[3]Sheet1!$B$2:$J$5000,9,0)*O31)),0,(IF(B31="","",VLOOKUP(L31,[3]Sheet1!$B$2:$J$5000,9,0)*O31))) -> 15.6 | R31: =IF([1]Sheet!$N31="","",[1]Sheet!$N31) -> 1802.79
A32: =IF([1]Sheet!$E32="","",[1]Sheet!$E32) -> 43888 | B32: =IF([1]Sheet!$A32="","",[1]Sheet!$A32) -> JETBEST CORPORATION | C32: =IF(B32="","",VLOOKUP(B32,[2]Sheet1!$B$2:$C$708,2,0)) -> ATU40607009 | D32: =IF(B32="","",VLOOKUP(B32,[2]Sheet1!$B$2:$D$708,3,0)) -> TW | E32: =IF(B32="","",VLOOKUP(B32,[2]Sheet1!$B$2:$E$708,4,0)) -> AT | F32: =IF(B32="","",VLOOKUP(B32,[2]Sheet1!$B$2:$F$708,5,0)) -> EXW | G32: =IF(B32="","",VLOOKUP(B32,[2]Sheet1!$B$2:$G$708,6,0)) -> 1 | H32: =IF(B32="","",VLOOKUP(B32,[2]Sheet1!$B$2:$H$708,7,0)) -> 1.1 | I32: =IF(B32="","",VLOOKUP(B32,[2]Sheet1!$B$2:$I$708,8,0)) -> 3 | K32: =IF(B32="","",VLOOKUP(L32,[3]Sheet1!$B$2:$J$5000,3,0)) -> 32151900 | L32: =IF([1]Sheet!$J32="","",[1]Sheet!$J32) -> ECO-VISION INK 440 LM | N32: =IF(B32="","",VLOOKUP(L32,[3]Sheet1!$B$2:$J$5000,2,0)) -> BUC | O32: =IF([1]Sheet!$K32="","",[1]Sheet!$K32) -> 36 | P32: =IF([1]Sheet!$M32="","",[1]Sheet!$M32) -> 75.12 | Q32: =IF(ISNA(IF(B32="","",VLOOKUP(L32,[3]Sheet1!$B$2:$J$5000,9,0)*O32)),0,(IF(B32="","",VLOOKUP(L32,[3]Sheet1!$B$2:$J$5000,9,0)*O32))) -> 23.4 | R32: =IF([1]Sheet!$N32="","",[1]Sheet!$N32) -> 2704.18
A33: =IF([1]Sheet!$E33="","",[1]Sheet!$E33) -> 43888 | B33: =IF([1]Sheet!$A33="","",[1]Sheet!$A33) -> JETBEST CORPORATION | C33: =IF(B33="","",VLOOKUP(B33,[2]Sheet1!$B$2:$C$708,2,0)) -> ATU40607009 | D33: =IF(B33="","",VLOOKUP(B33,[2]Sheet1!$B$2:$D$708,3,0)) -> TW | E33: =IF(B33="","",VLOOKUP(B33,[2]Sheet1!$B$2:$E$708,4,0)) -> AT | F33: =IF(B33="","",VLOOKUP(B33,[2]Sheet1!$B$2:$F$708,5,0)) -> EXW | G33: =IF(B33="","",VLOOKUP(B33,[2]Sheet1!$B$2:$G$708,6,0)) -> 1 | H33: =IF(B33="","",VLOOKUP(B33,[2]Sheet1!$B$2:$H$708,7,0)) -> 1.1 | I33: =IF(B33="","",VLOOKUP(B33,[2]Sheet1!$B$2:$I$708,8,0)) -> 3 | K33: =IF(B33="","",VLOOKUP(L33,[3]Sheet1!$B$2:$J$5000,3,0)) -> 32151900 | L33: =IF([1]Sheet!$J33="","",[1]Sheet!$J33) -> ECO-VISION INK 440 MG | N33: =IF(B33="","",VLOOKUP(L33,[3]Sheet1!$B$2:$J$5000,2,0)) -> BUC | O33: =IF([1]Sheet!$K33="","",[1]Sheet!$K33) -> 72 | P33: =IF([1]Sheet!$M33="","",[1]Sheet!$M33) -> 75.12 | Q33: =IF(ISNA(IF(B33="","",VLOOKUP(L33,[3]Sheet1!$B$2:$J$5000,9,0)*O33)),0,(IF(B33="","",VLOOKUP(L33,[3]Sheet1!$B$2:$J$5000,9,0)*O33))) -> 46.8 | R33: =IF([1]Sheet!$N33="","",[1]Sheet!$N33) -> 5408.37
A34: =IF([1]Sheet!$E34="","",[1]Sheet!$E34) -> 43888 | B34: =IF([1]Sheet!$A34="","",[1]Sheet!$A34) -> JETBEST CORPORATION | C34: =IF(B34="","",VLOOKUP(B34,[2]Sheet1!$B$2:$C$708,2,0)) -> ATU40607009 | D34: =IF(B34="","",VLOOKUP(B34,[2]Sheet1!$B$2:$D$708,3,0)) -> TW | E34: =IF(B34="","",VLOOKUP(B34,[2]Sheet1!$B$2:$E$708,4,0)) -> AT | F34: =IF(B34="","",VLOOKUP(B34,[2]Sheet1!$B$2:$F$708,5,0)) -> EXW | G34: =IF(B34="","",VLOOKUP(B34,[2]Sheet1!$B$2:$G$708,6,0)) -> 1 | H34: =IF(B34="","",VLOOKUP(B34,[2]Sheet1!$B$2:$H$708,7,0)) -> 1.1 | I34: =IF(B34="","",VLOOKUP(B34,[2]Sheet1!$B$2:$I$708,8,0)) -> 3 | K34: =IF(B34="","",VLOOKUP(L34,[3]Sheet1!$B$2:$J$5000,3,0)) -> 32151900 | L34: =IF([1]Sheet!$J34="","",[1]Sheet!$J34) -> ECO-VISION INK 440 YE | N34: =IF(B34="","",VLOOKUP(L34,[3]Sheet1!$B$2:$J$5000,2,0)) -> BUC | O34: =IF([1]Sheet!$K34="","",[1]Sheet!$K34) -> 72 | P34: =IF([1]Sheet!$M34="","",[1]Sheet!$M34) -> 75.12 | Q34: =IF(ISNA(IF(B34="","",VLOOKUP(L34,[3]Sheet1!$B$2:$J$5000,9,0)*O34)),0,(IF(B34="","",VLOOKUP(L34,[3]Sheet1!$B$2:$J$5000,9,0)*O34))) -> 46.8 | R34: =IF([1]Sheet!$N34="","",[1]Sheet!$N34) -> 5408.37
A35: =IF([1]Sheet!$E35="","",[1]Sheet!$E35) -> 43888 | B35: =IF([1]Sheet!$A35="","",[1]Sheet!$A35) -> JETBEST CORPORATION | C35: =IF(B35="","",VLOOKUP(B35,[2]Sheet1!$B$2:$C$708,2,0)) -> ATU40607009 | D35: =IF(B35="","",VLOOKUP(B35,[2]Sheet1!$B$2:$D$708,3,0)) -> TW | E35: =IF(B35="","",VLOOKUP(B35,[2]Sheet1!$B$2:$E$708,4,0)) -> AT | F35: =IF(B35="","",VLOOKUP(B35,[2]Sheet1!$B$2:$F$708,5,0)) -> EXW | G35: =IF(B35="","",VLOOKUP(B35,[2]Sheet1!$B$2:$G$708,6,0)) -> 1 | H35: =IF(B35="","",VLOOKUP(B35,[2]Sheet1!$B$2:$H$708,7,0)) -> 1.1 | I35: =IF(B35="","",VLOOKUP(B35,[2]Sheet1!$B$2:$I$708,8,0)) -> 3 | K35: =IF(B35="","",VLOOKUP(L35,[3]Sheet1!$B$2:$J$5000,3,0)) -> 32151100 | L35: =IF([1]Sheet!$J35="","",[1]Sheet!$J35) -> EX-VISION 1L CART BK | N35: =IF(B35="","",VLOOKUP(L35,[3]Sheet1!$B$2:$J$5000,2,0)) -> BUC | O35: =IF([1]Sheet!$K35="","",[1]Sheet!$K35) -> 4 | P35: =IF([1]Sheet!$M35="","",[1]Sheet!$M35) -> 119.3 | Q35: =IF(ISNA(IF(B35="","",VLOOKUP(L35,[3]Sheet1!$B$2:$J$5000,9,0)*O35)),0,(IF(B35="","",VLOOKUP(L35,[3]Sheet1!$B$2:$J$5000,9,0)*O35))) -> 2.4 | R35: =IF([1]Sheet!$N35="","",[1]Sheet!$N35) -> 477.21
A36: =IF([1]Sheet!$E36="","",[1]Sheet!$E36) -> 43888 | B36: =IF([1]Sheet!$A36="","",[1]Sheet!$A36) -> JETBEST CORPORATION | C36: =IF(B36="","",VLOOKUP(B36,[2]Sheet1!$B$2:$C$708,2,0)) -> ATU40607009 | D36: =IF(B36="","",VLOOKUP(B36,[2]Sheet1!$B$2:$D$708,3,0)) -> TW | E36: =IF(B36="","",VLOOKUP(B36,[2]Sheet1!$B$2:$E$708,4,0)) -> AT | F36: =IF(B36="","",VLOOKUP(B36,[2]Sheet1!$B$2:$F$708,5,0)) -> EXW | G36: =IF(B36="","",VLOOKUP(B36,[2]Sheet1!$B$2:$G$708,6,0)) -> 1 | H36: =IF(B36="","",VLOOKUP(B36,[2]Sheet1!$B$2:$H$708,7,0)) -> 1.1 | I36: =IF(B36="","",VLOOKUP(B36,[2]Sheet1!$B$2:$I$708,8,0)) -> 3 | K36: =IF(B36="","",VLOOKUP(L36,[3]Sheet1!$B$2:$J$5000,3,0)) -> 32151900 | L36: =IF([1]Sheet!$J36="","",[1]Sheet!$J36) -> EX-VISION 1L CART CY | N36: =IF(B36="","",VLOOKUP(L36,[3]Sheet1!$B$2:$J$5000,2,0)) -> BUC | O36: =IF([1]Sheet!$K36="","",[1]Sheet!$K36) -> 4 | P36: =IF([1]Sheet!$M36="","",[1]Sheet!$M36) -> 119.3 | Q36: =IF(ISNA(IF(B36="","",VLOOKUP(L36,[3]Sheet1!$B$2:$J$5000,9,0)*O36)),0,(IF(B36="","",VLOOKUP(L36,[3]Sheet1!$B$2:$J$5000,9,0)*O36))) -> 2.4 | R36: =IF([1]Sheet!$N36="","",[1]Sheet!$N36) -> 477.21
A37: =IF([1]Sheet!$E37="","",[1]Sheet!$E37) -> 43888 | B37: =IF([1]Sheet!$A37="","",[1]Sheet!$A37) -> JETBEST CORPORATION | C37: =IF(B37="","",VLOOKUP(B37,[2]Sheet1!$B$2:$C$708,2,0)) -> ATU40607009 | D37: =IF(B37="","",VLOOKUP(B37,[2]Sheet1!$B$2:$D$708,3,0)) -> TW | E37: =IF(B37="","",VLOOKUP(B37,[2]Sheet1!$B$2:$E$708,4,0)) -> AT | F37: =IF(B37="","",VLOOKUP(B37,[2]Sheet1!$B$2:$F$708,5,0)) -> EXW | G37: =IF(B37="","",VLOOKUP(B37,[2]Sheet1!$B$2:$G$708,6,0)) -> 1 | H37: =IF(B37="","",VLOOKUP(B37,[2]Sheet1!$B$2:$H$708,7,0)) -> 1.1 | I37: =IF(B37="","",VLOOKUP(B37,[2]Sheet1!$B$2:$I$708,8,0)) -> 3 | K37: =IF(B37="","",VLOOKUP(L37,[3]Sheet1!$B$2:$J$5000,3,0)) -> 32151900 | L37: =IF([1]Sheet!$J37="","",[1]Sheet!$J37) -> EX-VISION 1L CART LC | N37: =IF(B37="","",VLOOKUP(L37,[3]Sheet1!$B$2:$J$5000,2,0)) -> BUC | O37: =IF([1]Sheet!$K37="","",[1]Sheet!$K37) -> 5 | P37: =IF([1]Sheet!$M37="","",[1]Sheet!$M37) -> 119.3 | Q37: =IF(ISNA(IF(B37="","",VLOOKUP(L37,[3]Sheet1!$B$2:$J$5000,9,0)*O37)),0,(IF(B37="","",VLOOKUP(L37,[3]Sheet1!$B$2:$J$5000,9,0)*O37))) -> 3 | R37: =IF([1]Sheet!$N37="","",[1]Sheet!$N37) -> 596.51
A38: =IF([1]Sheet!$E38="","",[1]Sheet!$E38) -> 43888 | B38: =IF([1]Sheet!$A38="","",[1]Sheet!$A38) -> JETBEST CORPORATION | C38: =IF(B38="","",VLOOKUP(B38,[2]Sheet1!$B$2:$C$708,2,0)) -> ATU40607009 | D38: =IF(B38="","",VLOOKUP(B38,[2]Sheet1!$B$2:$D$708,3,0)) -> TW | E38: =IF(B38="","",VLOOKUP(B38,[2]Sheet1!$B$2:$E$708,4,0)) -> AT | F38: =IF(B38="","",VLOOKUP(B38,[2]Sheet1!$B$2:$F$708,5,0)) -> EXW | G38: =IF(B38="","",VLOOKUP(B38,[2]Sheet1!$B$2:$G$708,6,0)) -> 1 | H38: =IF(B38="","",VLOOKUP(B38,[2]Sheet1!$B$2:$H$708,7,0)) -> 1.1 | I38: =IF(B38="","",VLOOKUP(B38,[2]Sheet1!$B$2:$I$708,8,0)) -> 3 | K38: =IF(B38="","",VLOOKUP(L38,[3]Sheet1!$B$2:$J$5000,3,0)) -> 32151900 | L38: =IF([1]Sheet!$J38="","",[1]Sheet!$J38) -> EX-VISION 1L CART LM | N38: =IF(B38="","",VLOOKUP(L38,[3]Sheet1!$B$2:$J$5000,2,0)) -> BUC | O38: =IF([1]Sheet!$K38="","",[1]Sheet!$K38) -> 5 | P38: =IF([1]Sheet!$M38="","",[1]Sheet!$M38) -> 119.3 | Q38: =IF(ISNA(IF(B38="","",VLOOKUP(L38,[3]Sheet1!$B$2:$J$5000,9,0)*O38)),0,(IF(B38="","",VLOOKUP(L38,[3]Sheet1!$B$2:$J$5000,9,0)*O38))) -> 3 | R38: =IF([1]Sheet!$N38="","",[1]Sheet!$N38) -> 596.51
A39: =IF([1]Sheet!$E39="","",[1]Sheet!$E39) -> 43888 | B39: =IF([1]Sheet!$A39="","",[1]Sheet!$A39) -> JETBEST CORPORATION | C39: =IF(B39="","",VLOOKUP(B39,[2]Sheet1!$B$2:$C$708,2,0)) -> ATU40607009 | D39: =IF(B39="","",VLOOKUP(B39,[2]Sheet1!$B$2:$D$708,3,0)) -> TW | E39: =IF(B39="","",VLOOKUP(B39,[2]Sheet1!$B$2:$E$708,4,0)) -> AT | F39: =IF(B39="","",VLOOKUP(B39,[2]Sheet1!$B$2:$F$708,5,0)) -> EXW | G39: =IF(B39="","",VLOOKUP(B39,[2]Sheet1!$B$2:$G$708,6,0)) -> 1 | H39: =IF(B39="","",VLOOKUP(B39,[2]Sheet1!$B$2:$H$708,7,0)) -> 1.1 | I39: =IF(B39="","",VLOOKUP(B39,[2]Sheet1!$B$2:$I$708,8,0)) -> 3 | K39: =IF(B39="","",VLOOKUP(L39,[3]Sheet1!$B$2:$J$5000,3,0)) -> 32151900 | L39: =IF([1]Sheet!$J39="","",[1]Sheet!$J39) -> EX-VISION 1L CART MG | N39: =IF(B39="","",VLOOKUP(L39,[3]Sheet1!$B$2:$J$5000,2,0)) -> BUC | O39: =IF([1]Sheet!$K39="","",[1]Sheet!$K39) -> 4 | P39: =IF([1]Sheet!$M39="","",[1]Sheet!$M39) -> 119.3 | Q39: =IF(ISNA(IF(B39="","",VLOOKUP(L39,[3]Sheet1!$B$2:$J$5000,9,0)*O39)),0,(IF(B39="","",VLOOKUP(L39,[3]Sheet1!$B$2:$J$5000,9,0)*O39))) -> 2.4 | R39: =IF([1]Sheet!$N39="","",[1]Sheet!$N39) -> 477.21
A40: =IF([1]Sheet!$E40="","",[1]Sheet!$E40) -> 43888 | B40: =IF([1]Sheet!$A40="","",[1]Sheet!$A40) -> JETBEST CORPORATION | C40: =IF(B40="","",VLOOKUP(B40,[2]Sheet1!$B$2:$C$708,2,0)) -> ATU40607009 | D40: =IF(B40="","",VLOOKUP(B40,[2]Sheet1!$B$2:$D$708,3,0)) -> TW | E40: =IF(B40="","",VLOOKUP(B40,[2]Sheet1!$B$2:$E$708,4,0)) -> AT | F40: =IF(B40="","",VLOOKUP(B40,[2]Sheet1!$B$2:$F$708,5,0)) -> EXW | G40: =IF(B40="","",VLOOKUP(B40,[2]Sheet1!$B$2:$G$708,6,0)) -> 1 | H40: =IF(B40="","",VLOOKUP(B40,[2]Sheet1!$B$2:$H$708,7,0)) -> 1.1 | I40: =IF(B40="","",VLOOKUP(B40,[2]Sheet1!$B$2:$I$708,8,0)) -> 3 | K40: =IF(B40="","",VLOOKUP(L40,[3]Sheet1!$B$2:$J$5000,3,0)) -> 32151900 | L40: =IF([1]Sheet!$J40="","",[1]Sheet!$J40) -> EX-VISION 1L CART YE | N40: =IF(B40="","",VLOOKUP(L40,[3]Sheet1!$B$2:$J$5000,2,0)) -> BUC | O40: =IF([1]Sheet!$K40="","",[1]Sheet!$K40) -> 4 | P40: =IF([1]Sheet!$M40="","",[1]Sheet!$M40) -> 119.3 | Q40: =IF(ISNA(IF(B40="","",VLOOKUP(L40,[3]Sheet1!$B$2:$J$5000,9,0)*O40)),0,(IF(B40="","",VLOOKUP(L40,[3]Sheet1!$B$2:$J$5000,9,0)*O40))) -> 2.4 | R40: =IF([1]Sheet!$N40="","",[1]Sheet!$N40) -> 477.21
A41: =IF([1]Sheet!$E41="","",[1]Sheet!$E41) -> 43886 | B41: =IF([1]Sheet!$A41="","",[1]Sheet!$A41) -> SHANDONG KALLAI INTERNATIONAL TRADE | C41: =IF(B41="","",VLOOKUP(B41,[2]Sheet1!$B$2:$C$708,2,0)) -> ATU40607009 | D41: =IF(B41="","",VLOOKUP(B41,[2]Sheet1!$B$2:$D$708,3,0)) -> CN | E41: =IF(B41="","",VLOOKUP(B41,[2]Sheet1!$B$2:$E$708,4,0)) -> AT | F41: =IF(B41="","",VLOOKUP(B41,[2]Sheet1!$B$2:$F$708,5,0)) -> EXW | G41: =IF(B41="","",VLOOKUP(B41,[2]Sheet1!$B$2:$G$708,6,0)) -> 1 | H41: =IF(B41="","",VLOOKUP(B41,[2]Sheet1!$B$2:$H$708,7,0)) -> 1.1 | I41: =IF(B41="","",VLOOKUP(B41,[2]Sheet1!$B$2:$I$708,8,0)) -> 3 | K41: =IF(B41="","",VLOOKUP(L41,[3]Sheet1!$B$2:$J$5000,3,0)) -> 84596110 | L41: =IF([1]Sheet!$J41="","",[1]Sheet!$J41) -> FINE CNC F1-1325 ROUTER | N41: =IF(B41="","",VLOOKUP(L41,[3]Sheet1!$B$2:$J$5000,2,0)) -> BUC | O41: =IF([1]Sheet!$K41="","",[1]Sheet!$K41) -> 1 | P41: =IF([1]Sheet!$M41="","",[1]Sheet!$M41) -> 31964.4 | Q41: =IF(ISNA(IF(B41="","",VLOOKUP(L41,[3]Sheet1!$B$2:$J$5000,9,0)*O41)),0,(IF(B41="","",VLOOKUP(L41,[3]Sheet1!$B$2:$J$5000,9,0)*O41))) -> 1980 | R41: =IF([1]Sheet!$N41="","",[1]Sheet!$N41) -> 31964.4
A42: =IF([1]Sheet!$E42="","",[1]Sheet!$E42) -> 43880 | B42: =IF([1]Sheet!$A42="","",[1]Sheet!$A42) -> ATLAS DIGITAL SA | C42: =IF(B42="","",VLOOKUP(B42,[2]Sheet1!$B$2:$C$708,2,0)) -> EL094154295 | D42: =IF(B42="","",VLOOKUP(B42,[2]Sheet1!$B$2:$D$708,3,0)) -> JP | E42: =IF(B42="","",VLOOKUP(B42,[2]Sheet1!$B$2:$E$708,4,0)) -> GR | F42: =IF(B42="","",VLOOKUP(B42,[2]Sheet1!$B$2:$F$708,5,0)) -> EXW | G42: =IF(B42="","",VLOOKUP(B42,[2]Sheet1!$B$2:$G$708,6,0)) -> 1 | H42: =IF(B42="","",VLOOKUP(B42,[2]Sheet1!$B$2:$H$708,7,0)) -> 1.1 | I42: =IF(B42="","",VLOOKUP(B42,[2]Sheet1!$B$2:$I$708,8,0)) -> 3 | K42: =IF(B42="","",VLOOKUP(L42,[3]Sheet1!$B$2:$J$5000,3,0)) -> 84439990 | L42: =IF([1]Sheet!$J42="","",[1]Sheet!$J42) -> ROLAND ADAPTER,JOINT 3L CG2023 | N42: =IF(B42="","",VLOOKUP(L42,[3]Sheet1!$B$2:$J$5000,2,0)) -> BUC | O42: =IF([1]Sheet!$K42="","",[1]Sheet!$K42) -> 12 | P42: =IF([1]Sheet!$M42="","",[1]Sheet!$M42) -> 6.21 | Q42: =IF(ISNA(IF(B42="","",VLOOKUP(L42,[3]Sheet1!$B$2:$J$5000,9,0)*O42)),0,(IF(B42="","",VLOOKUP(L42,[3]Sheet1!$B$2:$J$5000,9,0)*O42))) -> 0 | R42: =IF([1]Sheet!$N42="","",[1]Sheet!$N42) -> 74.57
A43: =IF([1]Sheet!$E43="","",[1]Sheet!$E43) -> 43880 | B43: =IF([1]Sheet!$A43="","",[1]Sheet!$A43) -> ATLAS DIGITAL SA | C43: =IF(B43="","",VLOOKUP(B43,[2]Sheet1!$B$2:$C$708,2,0)) -> EL094154295 | D43: =IF(B43="","",VLOOKUP(B43,[2]Sheet1!$B$2:$D$708,3,0)) -> JP | E43: =IF(B43="","",VLOOKUP(B43,[2]Sheet1!$B$2:$E$708,4,0)) -> GR | F43: =IF(B43="","",VLOOKUP(B43,[2]Sheet1!$B$2:$F$708,5,0)) -> EXW | G43: =IF(B43="","",VLOOKUP(B43,[2]Sheet1!$B$2:$G$708,6,0)) -> 1 | H43: =IF(B43="","",VLOOKUP(B43,[2]Sheet1!$B$2:$H$708,7,0)) -> 1.1 | I43: =IF(B43="","",VLOOKUP(B43,[2]Sheet1!$B$2:$I$708,8,0)) -> 3 | K43: =IF(B43="","",VLOOKUP(L43,[3]Sheet1!$B$2:$J$5000,3,0)) -> 84439990 | L43: =IF([1]Sheet!$J43="","",[1]Sheet!$J43) -> ROLAND ASSY,CAP-TOP 2 XC-540 | N43: =IF(B43="","",VLOOKUP(L43,[3]Sheet1!$B$2:$J$5000,2,0)) -> BUC | O43: =IF([1]Sheet!$K43="","",[1]Sheet!$K43) -> 15 | P43: =IF([1]Sheet!$M43="","",[1]Sheet!$M43) -> 124.28 | Q43: =IF(ISNA(IF(B43="","",VLOOKUP(L43,[3]Sheet1!$B$2:$J$5000,9,0)*O43)),0,(IF(B43="","",VLOOKUP(L43,[3]Sheet1!$B$2:$J$5000,9,0)*O43))) -> 0 | R43: =IF([1]Sheet!$N43="","",[1]Sheet!$N43) -> 1864.2
A44: =IF([1]Sheet!$E44="","",[1]Sheet!$E44) -> 43880 | B44: =IF([1]Sheet!$A44="","",[1]Sheet!$A44) -> ATLAS DIGITAL SA | C44: =IF(B44="","",VLOOKUP(B44,[2]Sheet1!$B$2:$C$708,2,0)) -> EL094154295 | D44: =IF(B44="","",VLOOKUP(B44,[2]Sheet1!$B$2:$D$708,3,0)) -> JP | E44: =IF(B44="","",VLOOKUP(B44,[2]Sheet1!$B$2:$E$708,4,0)) -> GR | F44: =IF(B44="","",VLOOKUP(B44,[2]Sheet1!$B$2:$F$708,5,0)) -> EXW | G44: =IF(B44="","",VLOOKUP(B44,[2]Sheet1!$B$2:$G$708,6,0)) -> 1 | H44: =IF(B44="","",VLOOKUP(B44,[2]Sheet1!$B$2:$H$708,7,0)) -> 1.1 | I44: =IF(B44="","",VLOOKUP(B44,[2]Sheet1!$B$2:$I$708,8,0)) -> 3 | K44: =IF(B44="","",VLOOKUP(L44,[3]Sheet1!$B$2:$J$5000,3,0)) -> 84439990 | L44: =IF([1]Sheet!$J44="","",[1]Sheet!$J44) -> ROLAND ASSY,CAP-TOP VS-640_01 | N44: =IF(B44="","",VLOOKUP(L44,[3]Sheet1!$B$2:$J$5000,2,0)) -> BUC | O44: =IF([1]Sheet!$K44="","",[1]Sheet!$K44) -> 8 | P44: =IF([1]Sheet!$M44="","",[1]Sheet!$M44) -> 205.06 | Q44: =IF(ISNA(IF(B44="","",VLOOKUP(L44,[3]Sheet1!$B$2:$J$5000,9,0)*O44)),0,(IF(B44="","",VLOOKUP(L44,[3]Sheet1!$B$2:$J$5000,9,0)*O44))) -> 0 | R44: =IF([1]Sheet!$N44="","",[1]Sheet!$N44) -> 1640.5
A45: =IF([1]Sheet!$E45="","",[1]Sheet!$E45) -> 43880 | B45: =IF([1]Sheet!$A45="","",[1]Sheet!$A45) -> ATLAS DIGITAL SA | C45: =IF(B45="","",VLOOKUP(B45,[2]Sheet1!$B$2:$C$708,2,0)) -> EL094154295 | D45: =IF(B45="","",VLOOKUP(B45,[2]Sheet1!$B$2:$D$708,3,0)) -> JP | E45: =IF(B45="","",VLOOKUP(B45,[2]Sheet1!$B$2:$E$708,4,0)) -> GR | F45: =IF(B45="","",VLOOKUP(B45,[2]Sheet1!$B$2:$F$708,5,0)) -> EXW | G45: =IF(B45="","",VLOOKUP(B45,[2]Sheet1!$B$2:$G$708,6,0)) -> 1 | H45: =IF(B45="","",VLOOKUP(B45,[2]Sheet1!$B$2:$H$708,7,0)) -> 1.1 | I45: =IF(B45="","",VLOOKUP(B45,[2]Sheet1!$B$2:$I$708,8,0)) -> 3 | K45: =IF(B45="","",VLOOKUP(L45,[3]Sheet1!$B$2:$J$5000,3,0)) -> 84439990 | L45: =IF([1]Sheet!$J45="","",[1]Sheet!$J45) -> ROLAND ASSY,CARTRIDGE IC BOARD VP-540 | N45: =IF(B45="","",VLOOKUP(L45,[3]Sheet1!$B$2:$J$5000,2,0)) -> BUC | O45: =IF([1]Sheet!$K45="","",[1]Sheet!$K45) -> 2 | P45: =IF([1]Sheet!$M45="","",[1]Sheet!$M45) -> 74.57 | Q45: =IF(ISNA(IF(B45="","",VLOOKUP(L45,[3]Sheet1!$B$2:$J$5000,9,0)*O45)),0,(IF(B45="","",VLOOKUP(L45,[3]Sheet1!$B$2:$J$5000,9,0)*O45))) -> 0 | R45: =IF([1]Sheet!$N45="","",[1]Sheet!$N45) -> 149.14
A46: =IF([1]Sheet!$E46="","",[1]Sheet!$E46) -> 43880 | B46: =IF([1]Sheet!$A46="","",[1]Sheet!$A46) -> ATLAS DIGITAL SA | C46: =IF(B46="","",VLOOKUP(B46,[2]Sheet1!$B$2:$C$708,2,0)) -> EL094154295 | D46: =IF(B46="","",VLOOKUP(B46,[2]Sheet1!$B$2:$D$708,3,0)) -> JP | E46: =IF(B46="","",VLOOKUP(B46,[2]Sheet1!$B$2:$E$708,4,0)) -> GR | F46: =IF(B46="","",VLOOKUP(B46,[2]Sheet1!$B$2:$F$708,5,0)) -> EXW | G46: =IF(B46="","",VLOOKUP(B46,[2]Sheet1!$B$2:$G$708,6,0)) -> 1 | H46: =IF(B46="","",VLOOKUP(B46,[2]Sheet1!$B$2:$H$708,7,0)) -> 1.1 | I46: =IF(B46="","",VLOOKUP(B46,[2]Sheet1!$B$2:$I$708,8,0)) -> 3 | K46: =IF(B46="","",VLOOKUP(L46,[3]Sheet1!$B$2:$J$5000,3,0)) -> 84439990 | L46: =IF([1]Sheet!$J46="","",[1]Sheet!$J46) -> ROLAND ASSY,CLAMP S CAP DWX-50 | N46: =IF(B46="","",VLOOKUP(L46,[3]Sheet1!$B$2:$J$5000,2,0)) -> BUC | O46: =IF([1]Sheet!$K46="","",[1]Sheet!$K46) -> 1 | P46: =IF([1]Sheet!$M46="","",[1]Sheet!$M46) -> 941.42 | Q46: =IF(ISNA(IF(B46="","",VLOOKUP(L46,[3]Sheet1!$B$2:$J$5000,9,0)*O46)),0,(IF(B46="","",VLOOKUP(L46,[3]Sheet1!$B$2:$J$5000,9,0)*O46))) -> 0 | R46: =IF([1]Sheet!$N46="","",[1]Sheet!$N46) -> 941.42
A47: =IF([1]Sheet!$E47="","",[1]Sheet!$E47) -> 43880 | B47: =IF([1]Sheet!$A47="","",[1]Sheet!$A47) -> ATLAS DIGITAL SA | C47: =IF(B47="","",VLOOKUP(B47,[2]Sheet1!$B$2:$C$708,2,0)) -> EL094154295 | D47: =IF(B47="","",VLOOKUP(B47,[2]Sheet1!$B$2:$D$708,3,0)) -> JP | E47: =IF(B47="","",VLOOKUP(B47,[2]Sheet1!$B$2:$E$708,4,0)) -> GR | F47: =IF(B47="","",VLOOKUP(B47,[2]Sheet1!$B$2:$F$708,5,0)) -> EXW | G47: =IF(B47="","",VLOOKUP(B47,[2]Sheet1!$B$2:$G$708,6,0)) -> 1 | H47: =IF(B47="","",VLOOKUP(B47,[2]Sheet1!$B$2:$H$708,7,0)) -> 1.1 | I47: =IF(B47="","",VLOOKUP(B47,[2]Sheet1!$B$2:$I$708,8,0)) -> 3 | K47: =IF(B47="","",VLOOKUP(L47,[3]Sheet1!$B$2:$J$5000,3,0)) -> 84439990 | L47: =IF([1]Sheet!$J47="","",[1]Sheet!$J47) -> ROLAND ASSY,FEED MOTOR SP-540V | N47: =IF(B47="","",VLOOKUP(L47,[3]Sheet1!$B$2:$J$5000,2,0)) -> BUC | O47: =IF([1]Sheet!$K47="","",[1]Sheet!$K47) -> 1 | P47: =IF([1]Sheet!$M47="","",[1]Sheet!$M47) -> 997.35 | Q47: =IF(ISNA(IF(B47="","",VLOOKUP(L47,[3]Sheet1!$B$2:$J$5000,9,0)*O47)),0,(IF(B47="","",VLOOKUP(L47,[3]Sheet1!$B$2:$J$5000,9,0)*O47))) -> 0 | R47: =IF([1]Sheet!$N47="","",[1]Sheet!$N47) -> 997.35
A48: =IF([1]Sheet!$E48="","",[1]Sheet!$E48) -> 43872 | B48: =IF([1]Sheet!$A48="","",[1]Sheet!$A48) -> ATLAS DIGITAL SA | C48: =IF(B48="","",VLOOKUP(B48,[2]Sheet1!$B$2:$C$708,2,0)) -> EL094154295 | D48: =IF(B48="","",VLOOKUP(B48,[2]Sheet1!$B$2:$D$708,3,0)) -> JP | E48: =IF(B48="","",VLOOKUP(B48,[2]Sheet1!$B$2:$E$708,4,0)) -> GR | F48: =IF(B48="","",VLOOKUP(B48,[2]Sheet1!$B$2:$F$708,5,0)) -> EXW | G48: =IF(B48="","",VLOOKUP(B48,[2]Sheet1!$B$2:$G$708,6,0)) -> 1 | H48: =IF(B48="","",VLOOKUP(B48,[2]Sheet1!$B$2:$H$708,7,0)) -> 1.1 | I48: =IF(B48="","",VLOOKUP(B48,[2]Sheet1!$B$2:$I$708,8,0)) -> 3 | K48: =IF(B48="","",VLOOKUP(L48,[3]Sheet1!$B$2:$J$5000,3,0)) -> 84439990 | L48: =IF([1]Sheet!$J48="","",[1]Sheet!$J48) -> ROLAND ASSY,HEAD INKJET SOL XC-540 SV2 | N48: =IF(B48="","",VLOOKUP(L48,[3]Sheet1!$B$2:$J$5000,2,0)) -> BUC | O48: =IF([1]Sheet!$K48="","",[1]Sheet!$K48) -> 10 | P48: =IF([1]Sheet!$M48="","",[1]Sheet!$M48) -> 2025.89 | Q48: =IF(ISNA(IF(B48="","",VLOOKUP(L48,[3]Sheet1!$B$2:$J$5000,9,0)*O48)),0,(IF(B48="","",VLOOKUP(L48,[3]Sheet1!$B$2:$J$5000,9,0)*O48))) -> 0 | R48: =IF([1]Sheet!$N48="","",[1]Sheet!$N48) -> 20258.9
A49: =IF([1]Sheet!$E49="","",[1]Sheet!$E49) -> 43880 | B49: =IF([1]Sheet!$A49="","",[1]Sheet!$A49) -> ATLAS DIGITAL SA | C49: =IF(B49="","",VLOOKUP(B49,[2]Sheet1!$B$2:$C$708,2,0)) -> EL094154295 | D49: =IF(B49="","",VLOOKUP(B49,[2]Sheet1!$B$2:$D$708,3,0)) -> JP | E49: =IF(B49="","",VLOOKUP(B49,[2]Sheet1!$B$2:$E$708,4,0)) -> GR | F49: =IF(B49="","",VLOOKUP(B49,[2]Sheet1!$B$2:$F$708,5,0)) -> EXW | G49: =IF(B49="","",VLOOKUP(B49,[2]Sheet1!$B$2:$G$708,6,0)) -> 1 | H49: =IF(B49="","",VLOOKUP(B49,[2]Sheet1!$B$2:$H$708,7,0)) -> 1.1 | I49: =IF(B49="","",VLOOKUP(B49,[2]Sheet1!$B$2:$I$708,8,0)) -> 3 | K49: =IF(B49="","",VLOOKUP(L49,[3]Sheet1!$B$2:$J$5000,3,0)) -> 84439990 | L49: =IF([1]Sheet!$J49="","",[1]Sheet!$J49) -> ROLAND ASSY,HEAD INKJET VS-640 | N49: =IF(B49="","",VLOOKUP(L49,[3]Sheet1!$B$2:$J$5000,2,0)) -> BUC | O49: =IF([1]Sheet!$K49="","",[1]Sheet!$K49) -> 2 | P49: =IF([1]Sheet!$M49="","",[1]Sheet!$M49) -> 6548.6 | Q49: =IF(ISNA(IF(B49="","",VLOOKUP(L49,[3]Sheet1!$B$2:$J$5000,9,0)*O49)),0,(IF(B49="","",VLOOKUP(L49,[3]Sheet1!$B$2:$J$5000,9,0)*O49))) -> 0 | R49: =IF([1]Sheet!$N49="","",[1]Sheet!$N49) -> 13097.2
A50: =IF([1]Sheet!$E50="","",[1]Sheet!$E50) -> 43888 | B50: =IF([1]Sheet!$A50="","",[1]Sheet!$A50) -> JETBEST CORPORATION | C50: =IF(B50="","",VLOOKUP(B50,[2]Sheet1!$B$2:$C$708,2,0)) -> ATU40607009 | D50: =IF(B50="","",VLOOKUP(B50,[2]Sheet1!$B$2:$D$708,3,0)) -> TW | E50: =IF(B50="","",VLOOKUP(B50,[2]Sheet1!$B$2:$E$708,4,0)) -> AT | F50: =IF(B50="","",VLOOKUP(B50,[2]Sheet1!$B$2:$F$708,5,0)) -> EXW | G50: =IF(B50="","",VLOOKUP(B50,[2]Sheet1!$B$2:$G$708,6,0)) -> 1 | H50: =IF(B50="","",VLOOKUP(B50,[2]Sheet1!$B$2:$H$708,7,0)) -> 1.1 | I50: =IF(B50="","",VLOOKUP(B50,[2]Sheet1!$B$2:$I$708,8,0)) -> 3 | K50: =IF(B50="","",VLOOKUP(L50,[3]Sheet1!$B$2:$J$5000,3,0)) -> 84439990 | L50: =IF([1]Sheet!$J50="","",[1]Sheet!$J50) -> ROLAND ASSY,INK DAMPER L 3FAI 4 SJ-1000 | N50: =IF(B50="","",VLOOKUP(L50,[3]Sheet1!$B$2:$J$5000,2,0)) -> BUC | O50: =IF([1]Sheet!$K50="","",[1]Sheet!$K50) -> 24 | P50: =IF([1]Sheet!$M50="","",[1]Sheet!$M50) -> 30.93 | Q50: =IF(ISNA(IF(B50="","",VLOOKUP(L50,[3]Sheet1!$B$2:$J$5000,9,0)*O50)),0,(IF(B50="","",VLOOKUP(L50,[3]Sheet1!$B$2:$J$5000,9,0)*O50))) -> 0 | R50: =IF([1]Sheet!$N50="","",[1]Sheet!$N50) -> 742.32
A51: =IF([1]Sheet!$E51="","",[1]Sheet!$E51) -> 43888 | B51: =IF([1]Sheet!$A51="","",[1]Sheet!$A51) -> ATLAS DIGITAL SA | C51: =IF(B51="","",VLOOKUP(B51,[2]Sheet1!$B$2:$C$708,2,0)) -> EL094154295 | D51: =IF(B51="","",VLOOKUP(B51,[2]Sheet1!$B$2:$D$708,3,0)) -> JP | E51: =IF(B51="","",VLOOKUP(B51,[2]Sheet1!$B$2:$E$708,4,0)) -> GR | F51: =IF(B51="","",VLOOKUP(B51,[2]Sheet1!$B$2:$F$708,5,0)) -> EXW | G51: =IF(B51="","",VLOOKUP(B51,[2]Sheet1!$B$2:$G$708,6,0)) -> 1 | H51: =IF(B51="","",VLOOKUP(B51,[2]Sheet1!$B$2:$H$708,7,0)) -> 1.1 | I51: =IF(B51="","",VLOOKUP(B51,[2]Sheet1!$B$2:$I$708,8,0)) -> 3 | K51: =IF(B51="","",VLOOKUP(L51,[3]Sheet1!$B$2:$J$5000,3,0)) -> 84439990 | L51: =IF([1]Sheet!$J51="","",[1]Sheet!$J51) -> ROLAND ASSY,MAIN BOARD GX-500_10 | N51: =IF(B51="","",VLOOKUP(L51,[3]Sheet1!$B$2:$J$5000,2,0)) -> BUC | O51: =IF([1]Sheet!$K51="","",[1]Sheet!$K51) -> -1 | P51: =IF([1]Sheet!$M51="","",[1]Sheet!$M51) -> 2437.35 | Q51: =IF(ISNA(IF(B51="","",VLOOKUP(L51,[3]Sheet1!$B$2:$J$5000,9,0)*O51)),0,(IF(B51="","",VLOOKUP(L51,[3]Sheet1!$B$2:$J$5000,9,0)*O51))) -> 0 | R51: =IF([1]Sheet!$N51="","",[1]Sheet!$N51) -> -2437.35
A52: =IF([1]Sheet!$E52="","",[1]Sheet!$E52) -> 43880 | B52: =IF([1]Sheet!$A52="","",[1]Sheet!$A52) -> ATLAS DIGITAL SA | C52: =IF(B52="","",VLOOKUP(B52,[2]Sheet1!$B$2:$C$708,2,0)) -> EL094154295 | D52: =IF(B52="","",VLOOKUP(B52,[2]Sheet1!$B$2:$D$708,3,0)) -> JP | E52: =IF(B52="","",VLOOKUP(B52,[2]Sheet1!$B$2:$E$708,4,0)) -> GR | F52: =IF(B52="","",VLOOKUP(B52,[2]Sheet1!$B$2:$F$708,5,0)) -> EXW | G52: =IF(B52="","",VLOOKUP(B52,[2]Sheet1!$B$2:$G$708,6,0)) -> 1 | H52: =IF(B52="","",VLOOKUP(B52,[2]Sheet1!$B$2:$H$708,7,0)) -> 1.1 | I52: =IF(B52="","",VLOOKUP(B52,[2]Sheet1!$B$2:$I$708,8,0)) -> 3 | K52: =IF(B52="","",VLOOKUP(L52,[3]Sheet1!$B$2:$J$5000,3,0)) -> 84439990 | L52: =IF([1]Sheet!$J52="","",[1]Sheet!$J52) -> ROLAND ASSY,SCAN MOTOR SP-540V | N52: =IF(B52="","",VLOOKUP(L52,[3]Sheet1!$B$2:$J$5000,2,0)) -> BUC | O52: =IF([1]Sheet!$K52="","",[1]Sheet!$K52) -> 1 | P52: =IF([1]Sheet!$M52="","",[1]Sheet!$M52) -> 885.5 | Q52: =IF(ISNA(IF(B52="","",VLOOKUP(L52,[3]Sheet1!$B$2:$J$5000,9,0)*O52)),0,(IF(B52="","",VLOOKUP(L52,[3]Sheet1!$B$2:$J$5000,9,0)*O52))) -> 0 | R52: =IF([1]Sheet!$N52="","",[1]Sheet!$N52) -> 885.5
A53: =IF([1]Sheet!$E53="","",[1]Sheet!$E53) -> 43864 | B53: =IF([1]Sheet!$A53="","",[1]Sheet!$A53) -> ATLAS DIGITAL SA | C53: =IF(B53="","",VLOOKUP(B53,[2]Sheet1!$B$2:$C$708,2,0)) -> EL094154295 | D53: =IF(B53="","",VLOOKUP(B53,[2]Sheet1!$B$2:$D$708,3,0)) -> JP | E53: =IF(B53="","",VLOOKUP(B53,[2]Sheet1!$B$2:$E$708,4,0)) -> GR | F53: =IF(B53="","",VLOOKUP(B53,[2]Sheet1!$B$2:$F$708,5,0)) -> EXW | G53: =IF(B53="","",VLOOKUP(B53,[2]Sheet1!$B$2:$G$708,6,0)) -> 1 | H53: =IF(B53="","",VLOOKUP(B53,[2]Sheet1!$B$2:$H$708,7,0)) -> 1.1 | I53: =IF(B53="","",VLOOKUP(B53,[2]Sheet1!$B$2:$I$708,8,0)) -> 3 | K53: =IF(B53="","",VLOOKUP(L53,[3]Sheet1!$B$2:$J$5000,3,0)) -> 84433900 | L53: =IF([1]Sheet!$J53="","",[1]Sheet!$J53) -> ROLAND BN-20 | N53: =IF(B53="","",VLOOKUP(L53,[3]Sheet1!$B$2:$J$5000,2,0)) -> BUC | O53: =IF([1]Sheet!$K53="","",[1]Sheet!$K53) -> 1 | P53: =IF([1]Sheet!$M53="","",[1]Sheet!$M53) -> 24319.51 | Q53: =IF(ISNA(IF(B53="","",VLOOKUP(L53,[3]Sheet1!$B$2:$J$5000,9,0)*O53)),0,(IF(B53="","",VLOOKUP(L53,[3]Sheet1!$B$2:$J$5000,9,0)*O53))) -> 36 | R53: =IF([1]Sheet!$N53="","",[1]Sheet!$N53) -> 24319.51
A54: =IF([1]Sheet!$E54="","",[1]Sheet!$E54) -> 43880 | B54: =IF([1]Sheet!$A54="","",[1]Sheet!$A54) -> ATLAS DIGITAL SA | C54: =IF(B54="","",VLOOKUP(B54,[2]Sheet1!$B$2:$C$708,2,0)) -> EL094154295 | D54: =IF(B54="","",VLOOKUP(B54,[2]Sheet1!$B$2:$D$708,3,0)) -> JP | E54: =IF(B54="","",VLOOKUP(B54,[2]Sheet1!$B$2:$E$708,4,0)) -> GR | F54: =IF(B54="","",VLOOKUP(B54,[2]Sheet1!$B$2:$F$708,5,0)) -> EXW | G54: =IF(B54="","",VLOOKUP(B54,[2]Sheet1!$B$2:$G$708,6,0)) -> 1 | H54: =IF(B54="","",VLOOKUP(B54,[2]Sheet1!$B$2:$H$708,7,0)) -> 1.1 | I54: =IF(B54="","",VLOOKUP(B54,[2]Sheet1!$B$2:$I$708,8,0)) -> 3 | K54: =IF(B54="","",VLOOKUP(L54,[3]Sheet1!$B$2:$J$5000,3,0)) -> 84439990 | L54: =IF([1]Sheet!$J54="","",[1]Sheet!$J54) -> ROLAND CABLE-CARD 15P1 1900L BB SP-300 | N54: =IF(B54="","",VLOOKUP(L54,[3]Sheet1!$B$2:$J$5000,2,0)) -> BUC | O54: =IF([1]Sheet!$K54="","",[1]Sheet!$K54) -> 4 | P54: =IF([1]Sheet!$M54="","",[1]Sheet!$M54) -> 77.68 | Q54: =IF(ISNA(IF(B54="","",VLOOKUP(L54,[3]Sheet1!$B$2:$J$5000,9,0)*O54)),0,(IF(B54="","",VLOOKUP(L54,[3]Sheet1!$B$2:$J$5000,9,0)*O54))) -> 0 | R54: =IF([1]Sheet!$N54="","",[1]Sheet!$N54) -> 310.7
A55: =IF([1]Sheet!$E55="","",[1]Sheet!$E55) -> 43880 | B55: =IF([1]Sheet!$A55="","",[1]Sheet!$A55) -> ATLAS DIGITAL SA | C55: =IF(B55="","",VLOOKUP(B55,[2]Sheet1!$B$2:$C$708,2,0)) -> EL094154295 | D55: =IF(B55="","",VLOOKUP(B55,[2]Sheet1!$B$2:$D$708,3,0)) -> JP | E55: =IF(B55="","",VLOOKUP(B55,[2]Sheet1!$B$2:$E$708,4,0)) -> GR | F55: =IF(B55="","",VLOOKUP(B55,[2]Sheet1!$B$2:$F$708,5,0)) -> EXW | G55: =IF(B55="","",VLOOKUP(B55,[2]Sheet1!$B$2:$G$708,6,0)) -> 1 | H55: =IF(B55="","",VLOOKUP(B55,[2]Sheet1!$B$2:$H$708,7,0)) -> 1.1 | I55: =IF(B55="","",VLOOKUP(B55,[2]Sheet1!$B$2:$I$708,8,0)) -> 3 | K55: =IF(B55="","",VLOOKUP(L55,[3]Sheet1!$B$2:$J$5000,3,0)) -> 84439990 | L55: =IF([1]Sheet!$J55="","",[1]Sheet!$J55) -> ROLAND CABLE-CARD 15P1 2570L BB | N55: =IF(B55="","",VLOOKUP(L55,[3]Sheet1!$B$2:$J$5000,2,0)) -> BUC | O55: =IF([1]Sheet!$K55="","",[1]Sheet!$K55) -> 6 | P55: =IF([1]Sheet!$M55="","",[1]Sheet!$M55) -> 77.68 | Q55: =IF(ISNA(IF(B55="","",VLOOKUP(L55,[3]Sheet1!$B$2:$J$5000,9,0)*O55)),0,(IF(B55="","",VLOOKUP(L55,[3]Sheet1!$B$2:$J$5000,9,0)*O55))) -> 0 | R55: =IF([1]Sheet!$N55="","",[1]Sheet!$N55) -> 466.05
A56: =IF([1]Sheet!$E56="","",[1]Sheet!$E56) -> 43880 | B56: =IF([1]Sheet!$A56="","",[1]Sheet!$A56) -> ATLAS DIGITAL SA | C56: =IF(B56="","",VLOOKUP(B56,[2]Sheet1!$B$2:$C$708,2,0)) -> EL094154295 | D56: =IF(B56="","",VLOOKUP(B56,[2]Sheet1!$B$2:$D$708,3,0)) -> JP | E56: =IF(B56="","",VLOOKUP(B56,[2]Sheet1!$B$2:$E$708,4,0)) -> GR | F56: =IF(B56="","",VLOOKUP(B56,[2]Sheet1!$B$2:$F$708,5,0)) -> EXW | G56: =IF(B56="","",VLOOKUP(B56,[2]Sheet1!$B$2:$G$708,6,0)) -> 1 | H56: =IF(B56="","",VLOOKUP(B56,[2]Sheet1!$B$2:$H$708,7,0)) -> 1.1 | I56: =IF(B56="","",VLOOKUP(B56,[2]Sheet1!$B$2:$I$708,8,0)) -> 3 | K56: =IF(B56="","",VLOOKUP(L56,[3]Sheet1!$B$2:$J$5000,3,0)) -> 84439990 | L56: =IF([1]Sheet!$J56="","",[1]Sheet!$J56) -> ROLAND CABLE-CARD 21P1 390L BB HIGH-V | N56: =IF(B56="","",VLOOKUP(L56,[3]Sheet1!$B$2:$J$5000,2,0)) -> BUC | O56: =IF([1]Sheet!$K56="","",[1]Sheet!$K56) -> 4 | P56: =IF([1]Sheet!$M56="","",[1]Sheet!$M56) -> 27.96 | Q56: =IF(ISNA(IF(B56="","",VLOOKUP(L56,[3]Sheet1!$B$2:$J$5000,9,0)*O56)),0,(IF(B56="","",VLOOKUP(L56,[3]Sheet1!$B$2:$J$5000,9,0)*O56))) -> 0 | R56: =IF([1]Sheet!$N56="","",[1]Sheet!$N56) -> 111.85
A57: =IF([1]Sheet!$E57="","",[1]Sheet!$E57) -> 43880 | B57: =IF([1]Sheet!$A57="","",[1]Sheet!$A57) -> ATLAS DIGITAL SA | C57: =IF(B57="","",VLOOKUP(B57,[2]Sheet1!$B$2:$C$708,2,0)) -> EL094154295 | D57: =IF(B57="","",VLOOKUP(B57,[2]Sheet1!$B$2:$D$708,3,0)) -> JP | E57: =IF(B57="","",VLOOKUP(B57,[2]Sheet1!$B$2:$E$708,4,0)) -> GR | F57: =IF(B57="","",VLOOKUP(B57,[2]Sheet1!$B$2:$F$708,5,0)) -> EXW | G57: =IF(B57="","",VLOOKUP(B57,[2]Sheet1!$B$2:$G$708,6,0)) -> 1 | H57: =IF(B57="","",VLOOKUP(B57,[2]Sheet1!$B$2:$H$708,7,0)) -> 1.1 | I57: =IF(B57="","",VLOOKUP(B57,[2]Sheet1!$B$2:$I$708,8,0)) -> 3 | K57: =IF(B57="","",VLOOKUP(L57,[3]Sheet1!$B$2:$J$5000,3,0)) -> 84439990 | L57: =IF([1]Sheet!$J57="","",[1]Sheet!$J57) -> ROLAND CABLE-CARD 36P1 2670L BB HIGH-V | N57: =IF(B57="","",VLOOKUP(L57,[3]Sheet1!$B$2:$J$5000,2,0)) -> BUC | O57: =IF([1]Sheet!$K57="","",[1]Sheet!$K57) -> 1 | P57: =IF([1]Sheet!$M57="","",[1]Sheet!$M57) -> 158.46 | Q57: =IF(ISNA(IF(B57="","",VLOOKUP(L57,[3]Sheet1!$B$2:$J$5000,9,0)*O57)),0,(IF(B57="","",VLOOKUP(L57,[3]Sheet1!$B$2:$J$5000,9,0)*O57))) -> 0 | R57: =IF([1]Sheet!$N57="","",[1]Sheet!$N57) -> 158.46
A58: =IF([1]Sheet!$E58="","",[1]Sheet!$E58) -> 43864 | B58: =IF([1]Sheet!$A58="","",[1]Sheet!$A58) -> ATLAS DIGITAL SA | C58: =IF(B58="","",VLOOKUP(B58,[2]Sheet1!$B$2:$C$708,2,0)) -> EL094154295 | D58: =IF(B58="","",VLOOKUP(B58,[2]Sheet1!$B$2:$D$708,3,0)) -> JP | E58: =IF(B58="","",VLOOKUP(B58,[2]Sheet1!$B$2:$E$708,4,0)) -> GR | F58: =IF(B58="","",VLOOKUP(B58,[2]Sheet1!$B$2:$F$708,5,0)) -> EXW | G58: =IF(B58="","",VLOOKUP(B58,[2]Sheet1!$B$2:$G$708,6,0)) -> 1 | H58: =IF(B58="","",VLOOKUP(B58,[2]Sheet1!$B$2:$H$708,7,0)) -> 1.1 | I58: =IF(B58="","",VLOOKUP(B58,[2]Sheet1!$B$2:$I$708,8,0)) -> 3 | K58: =IF(B58="","",VLOOKUP(L58,[3]Sheet1!$B$2:$J$5000,3,0)) -> 32151100 | L58: =IF([1]Sheet!$J58="","",[1]Sheet!$J58) -> ROLAND ESL3-440 BK | N58: =IF(B58="","",VLOOKUP(L58,[3]Sheet1!$B$2:$J$5000,2,0)) -> BUC | O58: =IF([1]Sheet!$K58="","",[1]Sheet!$K58) -> 12 | P58: =IF([1]Sheet!$M58="","",[1]Sheet!$M58) -> 340.9 | Q58: =IF(ISNA(IF(B58="","",VLOOKUP(L58,[3]Sheet1!$B$2:$J$5000,9,0)*O58)),0,(IF(B58="","",VLOOKUP(L58,[3]Sheet1!$B$2:$J$5000,9,0)*O58))) -> 7.44 | R58: =IF([1]Sheet!$N58="","",[1]Sheet!$N58) -> 4090.84
A59: =IF([1]Sheet!$E59="","",[1]Sheet!$E59) -> 43880 | B59: =IF([1]Sheet!$A59="","",[1]Sheet!$A59) -> ATLAS DIGITAL SA | C59: =IF(B59="","",VLOOKUP(B59,[2]Sheet1!$B$2:$C$708,2,0)) -> EL094154295 | D59: =IF(B59="","",VLOOKUP(B59,[2]Sheet1!$B$2:$D$708,3,0)) -> JP | E59: =IF(B59="","",VLOOKUP(B59,[2]Sheet1!$B$2:$E$708,4,0)) -> GR | F59: =IF(B59="","",VLOOKUP(B59,[2]Sheet1!$B$2:$F$708,5,0)) -> EXW | G59: =IF(B59="","",VLOOKUP(B59,[2]Sheet1!$B$2:$G$708,6,0)) -> 1 | H59: =IF(B59="","",VLOOKUP(B59,[2]Sheet1!$B$2:$H$708,7,0)) -> 1.1 | I59: =IF(B59="","",VLOOKUP(B59,[2]Sheet1!$B$2:$I$708,8,0)) -> 3 | K59: =IF(B59="","",VLOOKUP(L59,[3]Sheet1!$B$2:$J$5000,3,0)) -> 32151900 | L59: =IF([1]Sheet!$J59="","",[1]Sheet!$J59) -> ROLAND ESL3-440 CY | N59: =IF(B59="","",VLOOKUP(L59,[3]Sheet1!$B$2:$J$5000,2,0)) -> BUC | O59: =IF([1]Sheet!$K59="","",[1]Sheet!$K59) -> 2 | P59: =IF([1]Sheet!$M59="","",[1]Sheet!$M59) -> 341.29 | Q59: =IF(ISNA(IF(B59="","",VLOOKUP(L59,[3]Sheet1!$B$2:$J$5000,9,0)*O59)),0,(IF(B59="","",VLOOKUP(L59,[3]Sheet1!$B$2:$J$5000,9,0)*O59))) -> 1 | R59: =IF([1]Sheet!$N59="","",[1]Sheet!$N59) -> 682.58
A60: =IF([1]Sheet!$E60="","",[1]Sheet!$E60) -> 43880 | B60: =IF([1]Sheet!$A60="","",[1]Sheet!$A60) -> ATLAS DIGITAL SA | C60: =IF(B60="","",VLOOKUP(B60,[2]Sheet1!$B$2:$C$708,2,0)) -> EL094154295 | D60: =IF(B60="","",VLOOKUP(B60,[2]Sheet1!$B$2:$D$708,3,0)) -> JP | E60: =IF(B60="","",VLOOKUP(B60,[2]Sheet1!$B$2:$E$708,4,0)) -> GR | F60: =IF(B60="","",VLOOKUP(B60,[2]Sheet1!$B$2:$F$708,5,0)) -> EXW | G60: =IF(B60="","",VLOOKUP(B60,[2]Sheet1!$B$2:$G$708,6,0)) -> 1 | H60: =IF(B60="","",VLOOKUP(B60,[2]Sheet1!$B$2:$H$708,7,0)) -> 1.1 | I60: =IF(B60="","",VLOOKUP(B60,[2]Sheet1!$B$2:$I$708,8,0)) -> 3 | K60: =IF(B60="","",VLOOKUP(L60,[3]Sheet1!$B$2:$J$5000,3,0)) -> 32151900 | L60: =IF([1]Sheet!$J60="","",[1]Sheet!$J60) -> ROLAND ESL3-440 LM | N60: =IF(B60="","",VLOOKUP(L60,[3]Sheet1!$B$2:$J$5000,2,0)) -> BUC | O60: =IF([1]Sheet!$K60="","",[1]Sheet!$K60) -> 4 | P60: =IF([1]Sheet!$M60="","",[1]Sheet!$M60) -> 341.29 | Q60: =IF(ISNA(IF(B60="","",VLOOKUP(L60,[3]Sheet1!$B$2:$J$5000,9,0)*O60)),0,(IF(B60="","",VLOOKUP(L60,[3]Sheet1!$B$2:$J$5000,9,0)*O60))) -> 2.48 | R60: =IF([1]Sheet!$N60="","",[1]Sheet!$N60) -> 1365.17
A61: =IF([1]Sheet!$E61="","",[1]Sheet!$E61) -> 43864 | B61: =IF([1]Sheet!$A61="","",[1]Sheet!$A61) -> ATLAS DIGITAL SA | C61: =IF(B61="","",VLOOKUP(B61,[2]Sheet1!$B$2:$C$708,2,0)) -> EL094154295 | D61: =IF(B61="","",VLOOKUP(B61,[2]Sheet1!$B$2:$D$708,3,0)) -> JP | E61: =IF(B61="","",VLOOKUP(B61,[2]Sheet1!$B$2:$E$708,4,0)) -> GR | F61: =IF(B61="","",VLOOKUP(B61,[2]Sheet1!$B$2:$F$708,5,0)) -> EXW | G61: =IF(B61="","",VLOOKUP(B61,[2]Sheet1!$B$2:$G$708,6,0)) -> 1 | H61: =IF(B61="","",VLOOKUP(B61,[2]Sheet1!$B$2:$H$708,7,0)) -> 1.1 | I61: =IF(B61="","",VLOOKUP(B61,[2]Sheet1!$B$2:$I$708,8,0)) -> 3 | K61: =IF(B61="","",VLOOKUP(L61,[3]Sheet1!$B$2:$J$5000,3,0)) -> 32151900 | L61: =IF([1]Sheet!$J61="","",[1]Sheet!$J61) -> ROLAND ESL3-440 MG | N61: =IF(B61="","",VLOOKUP(L61,[3]Sheet1!$B$2:$J$5000,2,0)) -> BUC | O61: =IF([1]Sheet!$K61="","",[1]Sheet!$K61) -> 12 | P61: =IF([1]Sheet!$M61="","",[1]Sheet!$M61) -> 340.9 | Q61: =IF(ISNA(IF(B61="","",VLOOKUP(L61,[3]Sheet1!$B$2:$J$5000,9,0)*O61)),0,(IF(B61="","",VLOOKUP(L61,[3]Sheet1!$B$2:$J$5000,9,0)*O61))) -> 7.44 | R61: =IF([1]Sheet!$N61="","",[1]Sheet!$N61) -> 4090.84
A62: =IF([1]Sheet!$E62="","",[1]Sheet!$E62) -> 43864 | B62: =IF([1]Sheet!$A62="","",[1]Sheet!$A62) -> ATLAS DIGITAL SA | C62: =IF(B62="","",VLOOKUP(B62,[2]Sheet1!$B$2:$C$708,2,0)) -> EL094154295 | D62: =IF(B62="","",VLOOKUP(B62,[2]Sheet1!$B$2:$D$708,3,0)) -> JP | E62: =IF(B62="","",VLOOKUP(B62,[2]Sheet1!$B$2:$E$708,4,0)) -> GR | F62: =IF(B62="","",VLOOKUP(B62,[2]Sheet1!$B$2:$F$708,5,0)) -> EXW | G62: =IF(B62="","",VLOOKUP(B62,[2]Sheet1!$B$2:$G$708,6,0)) -> 1 | H62: =IF(B62="","",VLOOKUP(B62,[2]Sheet1!$B$2:$H$708,7,0)) -> 1.1 | I62: =IF(B62="","",VLOOKUP(B62,[2]Sheet1!$B$2:$I$708,8,0)) -> 3 | K62: =IF(B62="","",VLOOKUP(L62,[3]Sheet1!$B$2:$J$5000,3,0)) -> 32151900 | L62: =IF([1]Sheet!$J62="","",[1]Sheet!$J62) -> ROLAND ESL3-440 YE | N62: =IF(B62="","",VLOOKUP(L62,[3]Sheet1!$B$2:$J$5000,2,0)) -> BUC | O62: =IF([1]Sheet!$K62="","",[1]Sheet!$K62) -> 12 | P62: =IF([1]Sheet!$M62="","",[1]Sheet!$M62) -> 340.9 | Q62: =IF(ISNA(IF(B62="","",VLOOKUP(L62,[3]Sheet1!$B$2:$J$5000,9,0)*O62)),0,(IF(B62="","",VLOOKUP(L62,[3]Sheet1!$B$2:$J$5000,9,0)*O62))) -> 7.44 | R62: =IF([1]Sheet!$N62="","",[1]Sheet!$N62) -> 4090.84
A63: =IF([1]Sheet!$E63="","",[1]Sheet!$E63) -> 43864 | B63: =IF([1]Sheet!$A63="","",[1]Sheet!$A63) -> ATLAS DIGITAL SA | C63: =IF(B63="","",VLOOKUP(B63,[2]Sheet1!$B$2:$C$708,2,0)) -> EL094154295 | D63: =IF(B63="","",VLOOKUP(B63,[2]Sheet1!$B$2:$D$708,3,0)) -> JP | E63: =IF(B63="","",VLOOKUP(B63,[2]Sheet1!$B$2:$E$708,4,0)) -> GR | F63: =IF(B63="","",VLOOKUP(B63,[2]Sheet1!$B$2:$F$708,5,0)) -> EXW | G63: =IF(B63="","",VLOOKUP(B63,[2]Sheet1!$B$2:$G$708,6,0)) -> 1 | H63: =IF(B63="","",VLOOKUP(B63,[2]Sheet1!$B$2:$H$708,7,0)) -> 1.1 | I63: =IF(B63="","",VLOOKUP(B63,[2]Sheet1!$B$2:$I$708,8,0)) -> 3 | K63: =IF(B63="","",VLOOKUP(L63,[3]Sheet1!$B$2:$J$5000,3,0)) -> 32151100 | L63: =IF([1]Sheet!$J63="","",[1]Sheet!$J63) -> ROLAND EUV4 BK | N63: =IF(B63="","",VLOOKUP(L63,[3]Sheet1!$B$2:$J$5000,2,0)) -> BUC | O63: =IF([1]Sheet!$K63="","",[1]Sheet!$K63) -> 15 | P63: =IF([1]Sheet!$M63="","",[1]Sheet!$M63) -> 286.67 | Q63: =IF(ISNA(IF(B63="","",VLOOKUP(L63,[3]Sheet1!$B$2:$J$5000,9,0)*O63)),0,(IF(B63="","",VLOOKUP(L63,[3]Sheet1!$B$2:$J$5000,9,0)*O63))) -> 7.05 | R63: =IF([1]Sheet!$N63="","",[1]Sheet!$N63) -> 4300.11
A64: =IF([1]Sheet!$E64="","",[1]Sheet!$E64) -> 43864 | B64: =IF([1]Sheet!$A64="","",[1]Sheet!$A64) -> ATLAS DIGITAL SA | C64: =IF(B64="","",VLOOKUP(B64,[2]Sheet1!$B$2:$C$708,2,0)) -> EL094154295 | D64: =IF(B64="","",VLOOKUP(B64,[2]Sheet1!$B$2:$D$708,3,0)) -> JP | E64: =IF(B64="","",VLOOKUP(B64,[2]Sheet1!$B$2:$E$708,4,0)) -> GR | F64: =IF(B64="","",VLOOKUP(B64,[2]Sheet1!$B$2:$F$708,5,0)) -> EXW | G64: =IF(B64="","",VLOOKUP(B64,[2]Sheet1!$B$2:$G$708,6,0)) -> 1 | H64: =IF(B64="","",VLOOKUP(B64,[2]Sheet1!$B$2:$H$708,7,0)) -> 1.1 | I64: =IF(B64="","",VLOOKUP(B64,[2]Sheet1!$B$2:$I$708,8,0)) -> 3 | K64: =IF(B64="","",VLOOKUP(L64,[3]Sheet1!$B$2:$J$5000,3,0)) -> 32151900 | L64: =IF([1]Sheet!$J64="","",[1]Sheet!$J64) -> ROLAND EUV4 CY | N64: =IF(B64="","",VLOOKUP(L64,[3]Sheet1!$B$2:$J$5000,2,0)) -> BUC | O64: =IF([1]Sheet!$K64="","",[1]Sheet!$K64) -> 15 | P64: =IF([1]Sheet!$M64="","",[1]Sheet!$M64) -> 286.67 | Q64: =IF(ISNA(IF(B64="","",VLOOKUP(L64,[3]Sheet1!$B$2:$J$5000,9,0)*O64)),0,(IF(B64="","",VLOOKUP(L64,[3]Sheet1!$B$2:$J$5000,9,0)*O64))) -> 7.05 | R64: =IF([1]Sheet!$N64="","",[1]Sheet!$N64) -> 4300.11
A65: =IF([1]Sheet!$E65="","",[1]Sheet!$E65) -> 43864 | B65: =IF([1]Sheet!$A65="","",[1]Sheet!$A65) -> ATLAS DIGITAL SA | C65: =IF(B65="","",VLOOKUP(B65,[2]Sheet1!$B$2:$C$708,2,0)) -> EL094154295 | D65: =IF(B65="","",VLOOKUP(B65,[2]Sheet1!$B$2:$D$708,3,0)) -> JP | E65: =IF(B65="","",VLOOKUP(B65,[2]Sheet1!$B$2:$E$708,4,0)) -> GR | F65: =IF(B65="","",VLOOKUP(B65,[2]Sheet1!$B$2:$F$708,5,0)) -> EXW | G65: =IF(B65="","",VLOOKUP(B65,[2]Sheet1!$B$2:$G$708,6,0)) -> 1 | H65: =IF(B65="","",VLOOKUP(B65,[2]Sheet1!$B$2:$H$708,7,0)) -> 1.1 | I65: =IF(B65="","",VLOOKUP(B65,[2]Sheet1!$B$2:$I$708,8,0)) -> 3 | K65: =IF(B65="","",VLOOKUP(L65,[3]Sheet1!$B$2:$J$5000,3,0)) -> 32151900 | L65: =IF([1]Sheet!$J65="","",[1]Sheet!$J65) -> ROLAND EUV4 GL | N65: =IF(B65="","",VLOOKUP(L65,[3]Sheet1!$B$2:$J$5000,2,0)) -> BUC | O65: =IF([1]Sheet!$K65="","",[1]Sheet!$K65) -> 10 | P65: =IF([1]Sheet!$M65="","",[1]Sheet!$M65) -> 286.67 | Q65: =IF(ISNA(IF(B65="","",VLOOKUP(L65,[3]Sheet1!$B$2:$J$5000,9,0)*O65)),0,(IF(B65="","",VLOOKUP(L65,[3]Sheet1!$B$2:$J$5000,9,0)*O65))) -> 4.7 | R65: =IF([1]Sheet!$N65="","",[1]Sheet!$N65) -> 2866.74
A66: =IF([1]Sheet!$E66="","",[1]Sheet!$E66) -> 43864 | B66: =IF([1]Sheet!$A66="","",[1]Sheet!$A66) -> ATLAS DIGITAL SA | C66: =IF(B66="","",VLOOKUP(B66,[2]Sheet1!$B$2:$C$708,2,0)) -> EL094154295 | D66: =IF(B66="","",VLOOKUP(B66,[2]Sheet1!$B$2:$D$708,3,0)) -> JP | E66: =IF(B66="","",VLOOKUP(B66,[2]Sheet1!$B$2:$E$708,4,0)) -> GR | F66: =IF(B66="","",VLOOKUP(B66,[2]Sheet1!$B$2:$F$708,5,0)) -> EXW | G66: =IF(B66="","",VLOOKUP(B66,[2]Sheet1!$B$2:$G$708,6,0)) -> 1 | H66: =IF(B66="","",VLOOKUP(B66,[2]Sheet1!$B$2:$H$708,7,0)) -> 1.1 | I66: =IF(B66="","",VLOOKUP(B66,[2]Sheet1!$B$2:$I$708,8,0)) -> 3 | K66: =IF(B66="","",VLOOKUP(L66,[3]Sheet1!$B$2:$J$5000,3,0)) -> 32151900 | L66: =IF([1]Sheet!$J66="","",[1]Sheet!$J66) -> ROLAND EUV4 MG | N66: =IF(B66="","",VLOOKUP(L66,[3]Sheet1!$B$2:$J$5000,2,0)) -> BUC | O66: =IF([1]Sheet!$K66="","",[1]Sheet!$K66) -> 25 | P66: =IF([1]Sheet!$M66="","",[1]Sheet!$M66) -> 286.67 | Q66: =IF(ISNA(IF(B66="","",VLOOKUP(L66,[3]Sheet1!$B$2:$J$5000,9,0)*O66)),0,(IF(B66="","",VLOOKUP(L66,[3]Sheet1!$B$2:$J$5000,9,0)*O66))) -> 11.75 | R66: =IF([1]Sheet!$N66="","",[1]Sheet!$N66) -> 7166.85
A67: =IF([1]Sheet!$E67="","",[1]Sheet!$E67) -> 43864 | B67: =IF([1]Sheet!$A67="","",[1]Sheet!$A67) -> ATLAS DIGITAL SA | C67: =IF(B67="","",VLOOKUP(B67,[2]Sheet1!$B$2:$C$708,2,0)) -> EL094154295 | D67: =IF(B67="","",VLOOKUP(B67,[2]Sheet1!$B$2:$D$708,3,0)) -> JP | E67: =IF(B67="","",VLOOKUP(B67,[2]Sheet1!$B$2:$E$708,4,0)) -> GR | F67: =IF(B67="","",VLOOKUP(B67,[2]Sheet1!$B$2:$F$708,5,0)) -> EXW | G67: =IF(B67="","",VLOOKUP(B67,[2]Sheet1!$B$2:$G$708,6,0)) -> 1 | H67: =IF(B67="","",VLOOKUP(B67,[2]Sheet1!$B$2:$H$708,7,0)) -> 1.1 | I67: =IF(B67="","",VLOOKUP(B67,[2]Sheet1!$B$2:$I$708,8,0)) -> 3 | K67: =IF(B67="","",VLOOKUP(L67,[3]Sheet1!$B$2:$J$5000,3,0)) -> 32151900 | L67: =IF([1]Sheet!$J67="","",[1]Sheet!$J67) -> ROLAND EUV4 WH | N67: =IF(B67="","",VLOOKUP(L67,[3]Sheet1!$B$2:$J$5000,2,0)) -> BUC | O67: =IF([1]Sheet!$K67="","",[1]Sheet!$K67) -> 25 | P67: =IF([1]Sheet!$M67="","",[1]Sheet!$M67) -> 286.67 | Q67: =IF(ISNA(IF(B67="","",VLOOKUP(L67,[3]Sheet1!$B$2:$J$5000,9,0)*O67)),0,(IF(B67="","",VLOOKUP(L67,[3]Sheet1!$B$2:$J$5000,9,0)*O67))) -> 11.75 | R67: =IF([1]Sheet!$N67="","",[1]Sheet!$N67) -> 7166.85
A68: =IF([1]Sheet!$E68="","",[1]Sheet!$E68) -> 43864 | B68: =IF([1]Sheet!$A68="","",[1]Sheet!$A68) -> ATLAS DIGITAL SA | C68: =IF(B68="","",VLOOKUP(B68,[2]Sheet1!$B$2:$C$708,2,0)) -> EL094154295 | D68: =IF(B68="","",VLOOKUP(B68,[2]Sheet1!$B$2:$D$708,3,0)) -> JP | E68: =IF(B68="","",VLOOKUP(B68,[2]Sheet1!$B$2:$E$708,4,0)) -> GR | F68: =IF(B68="","",VLOOKUP(B68,[2]Sheet1!$B$2:$F$708,5,0)) -> EXW | G68: =IF(B68="","",VLOOKUP(B68,[2]Sheet1!$B$2:$G$708,6,0)) -> 1 | H68: =IF(B68="","",VLOOKUP(B68,[2]Sheet1!$B$2:$H$708,7,0)) -> 1.1 | I68: =IF(B68="","",VLOOKUP(B68,[2]Sheet1!$B$2:$I$708,8,0)) -> 3 | K68: =IF(B68="","",VLOOKUP(L68,[3]Sheet1!$B$2:$J$5000,3,0)) -> 32151900 | L68: =IF([1]Sheet!$J68="","",[1]Sheet!$J68) -> ROLAND EUV4 YE | N68: =IF(B68="","",VLOOKUP(L68,[3]Sheet1!$B$2:$J$5000,2,0)) -> BUC | O68: =IF([1]Sheet!$K68="","",[1]Sheet!$K68) -> 25 | P68: =IF([1]Sheet!$M68="","",[1]Sheet!$M68) -> 286.67 | Q68: =IF(ISNA(IF(B68="","",VLOOKUP(L68,[3]Sheet1!$B$2:$J$5000,9,0)*O68)),0,(IF(B68="","",VLOOKUP(L68,[3]Sheet1!$B$2:$J$5000,9,0)*O68))) -> 11.75 | R68: =IF([1]Sheet!$N68="","",[1]Sheet!$N68) -> 7166.85
A69: =IF([1]Sheet!$E69="","",[1]Sheet!$E69) -> 43880 | B69: =IF([1]Sheet!$A69="","",[1]Sheet!$A69) -> ATLAS DIGITAL SA | C69: =IF(B69="","",VLOOKUP(B69,[2]Sheet1!$B$2:$C$708,2,0)) -> EL094154295 | D69: =IF(B69="","",VLOOKUP(B69,[2]Sheet1!$B$2:$D$708,3,0)) -> JP | E69: =IF(B69="","",VLOOKUP(B69,[2]Sheet1!$B$2:$E$708,4,0)) -> GR | F69: =IF(B69="","",VLOOKUP(B69,[2]Sheet1!$B$2:$F$708,5,0)) -> EXW | G69: =IF(B69="","",VLOOKUP(B69,[2]Sheet1!$B$2:$G$708,6,0)) -> 1 | H69: =IF(B69="","",VLOOKUP(B69,[2]Sheet1!$B$2:$H$708,7,0)) -> 1.1 | I69: =IF(B69="","",VLOOKUP(B69,[2]Sheet1!$B$2:$I$708,8,0)) -> 3 | K69: =IF(B69="","",VLOOKUP(L69,[3]Sheet1!$B$2:$J$5000,3,0)) -> 84439990 | L69: =IF([1]Sheet!$J69="","",[1]Sheet!$J69) -> ROLAND FILTER(M),MIST CARRIAGE LEF-20 | N69: =IF(B69="","",VLOOKUP(L69,[3]Sheet1!$B$2:$J$5000,2,0)) -> BUC | O69: =IF([1]Sheet!$K69="","",[1]Sheet!$K69) -> 10 | P69: =IF([1]Sheet!$M69="","",[1]Sheet!$M69) -> 12.43 | Q69: =IF(ISNA(IF(B69="","",VLOOKUP(L69,[3]Sheet1!$B$2:$J$5000,9,0)*O69)),0,(IF(B69="","",VLOOKUP(L69,[3]Sheet1!$B$2:$J$5000,9,0)*O69))) -> 0 | R69: =IF([1]Sheet!$N69="","",[1]Sheet!$N69) -> 124.28
A70: =IF([1]Sheet!$E70="","",[1]Sheet!$E70) -> 43880 | B70: =IF([1]Sheet!$A70="","",[1]Sheet!$A70) -> ATLAS DIGITAL SA | C70: =IF(B70="","",VLOOKUP(B70,[2]Sheet1!$B$2:$C$708,2,0)) -> EL094154295 | D70: =IF(B70="","",VLOOKUP(B70,[2]Sheet1!$B$2:$D$708,3,0)) -> JP | E70: =IF(B70="","",VLOOKUP(B70,[2]Sheet1!$B$2:$E$708,4,0)) -> GR | F70: =IF(B70="","",VLOOKUP(B70,[2]Sheet1!$B$2:$F$708,5,0)) -> EXW | G70: =IF(B70="","",VLOOKUP(B70,[2]Sheet1!$B$2:$G$708,6,0)) -> 1 | H70: =IF(B70="","",VLOOKUP(B70,[2]Sheet1!$B$2:$H$708,7,0)) -> 1.1 | I70: =IF(B70="","",VLOOKUP(B70,[2]Sheet1!$B$2:$I$708,8,0)) -> 3 | K70: =IF(B70="","",VLOOKUP(L70,[3]Sheet1!$B$2:$J$5000,3,0)) -> 84439990 | L70: =IF([1]Sheet!$J70="","",[1]Sheet!$J70) -> ROLAND FILTER,LED LAMP LEF-20 (5 BUC) | N70: =IF(B70="","",VLOOKUP(L70,[3]Sheet1!$B$2:$J$5000,2,0)) -> BUC | O70: =IF([1]Sheet!$K70="","",[1]Sheet!$K70) -> 8 | P70: =IF([1]Sheet!$M70="","",[1]Sheet!$M70) -> 201.96 | Q70: =IF(ISNA(IF(B70="","",VLOOKUP(L70,[3]Sheet1!$B$2:$J$5000,9,0)*O70)),0,(IF(B70="","",VLOOKUP(L70,[3]Sheet1!$B$2:$J$5000,9,0)*O70))) -> 0 | R70: =IF([1]Sheet!$N70="","",[1]Sheet!$N70) -> 1615.64
A71: =IF([1]Sheet!$E71="","",[1]Sheet!$E71) -> 43881 | B71: =IF([1]Sheet!$A71="","",[1]Sheet!$A71) -> ATLAS DIGITAL SA | C71: =IF(B71="","",VLOOKUP(B71,[2]Sheet1!$B$2:$C$708,2,0)) -> EL094154295 | D71: =IF(B71="","",VLOOKUP(B71,[2]Sheet1!$B$2:$D$708,3,0)) -> JP | E71: =IF(B71="","",VLOOKUP(B71,[2]Sheet1!$B$2:$E$708,4,0)) -> GR | F71: =IF(B71="","",VLOOKUP(B71,[2]Sheet1!$B$2:$F$708,5,0)) -> EXW | G71: =IF(B71="","",VLOOKUP(B71,[2]Sheet1!$B$2:$G$708,6,0)) -> 1 | H71: =IF(B71="","",VLOOKUP(B71,[2]Sheet1!$B$2:$H$708,7,0)) -> 1.1 | I71: =IF(B71="","",VLOOKUP(B71,[2]Sheet1!$B$2:$I$708,8,0)) -> 3 | K71: =IF(B71="","",VLOOKUP(L71,[3]Sheet1!$B$2:$J$5000,3,0)) -> 84433900 | L71: =IF([1]Sheet!$J71="","",[1]Sheet!$J71) -> ROLAND GR-540 | N71: =IF(B71="","",VLOOKUP(L71,[3]Sheet1!$B$2:$J$5000,2,0)) -> BUC | O71: =IF([1]Sheet!$K71="","",[1]Sheet!$K71) -> 1 | P71: =IF([1]Sheet!$M71="","",[1]Sheet!$M71) -> 16888.63 | Q71: =IF(ISNA(IF(B71="","",VLOOKUP(L71,[3]Sheet1!$B$2:$J$5000,9,0)*O71)),0,(IF(B71="","",VLOOKUP(L71,[3]Sheet1!$B$2:$J$5000,9,0)*O71))) -> 94 | R71: =IF([1]Sheet!$N71="","",[1]Sheet!$N71) -> 16888.63
A72: =IF([1]Sheet!$E72="","",[1]Sheet!$E72) -> 43864 | B72: =IF([1]Sheet!$A72="","",[1]Sheet!$A72) -> ATLAS DIGITAL SA | C72: =IF(B72="","",VLOOKUP(B72,[2]Sheet1!$B$2:$C$708,2,0)) -> EL094154295 | D72: =IF(B72="","",VLOOKUP(B72,[2]Sheet1!$B$2:$D$708,3,0)) -> JP | E72: =IF(B72="","",VLOOKUP(B72,[2]Sheet1!$B$2:$E$708,4,0)) -> GR | F72: =IF(B72="","",VLOOKUP(B72,[2]Sheet1!$B$2:$F$708,5,0)) -> EXW | G72: =IF(B72="","",VLOOKUP(B72,[2]Sheet1!$B$2:$G$708,6,0)) -> 1 | H72: =IF(B72="","",VLOOKUP(B72,[2]Sheet1!$B$2:$H$708,7,0)) -> 1.1 | I72: =IF(B72="","",VLOOKUP(B72,[2]Sheet1!$B$2:$I$708,8,0)) -> 3 | K72: =IF(B72="","",VLOOKUP(L72,[3]Sheet1!$B$2:$J$5000,3,0)) -> 84411070 | L72: =IF([1]Sheet!$J72="","",[1]Sheet!$J72) -> ROLAND GS-24 VINYL CUTTER | N72: =IF(B72="","",VLOOKUP(L72,[3]Sheet1!$B$2:$J$5000,2,0)) -> BUC | O72: =IF([1]Sheet!$K72="","",[1]Sheet!$K72) -> 1 | P72: =IF([1]Sheet!$M72="","",[1]Sheet!$M72) -> 4983.35 | Q72: =IF(ISNA(IF(B72="","",VLOOKUP(L72,[3]Sheet1!$B$2:$J$5000,9,0)*O72)),0,(IF(B72="","",VLOOKUP(L72,[3]Sheet1!$B$2:$J$5000,9,0)*O72))) -> 14 | R72: =IF([1]Sheet!$N72="","",[1]Sheet!$N72) -> 4983.35
A73: =IF([1]Sheet!$E73="","",[1]Sheet!$E73) -> 43880 | B73: =IF([1]Sheet!$A73="","",[1]Sheet!$A73) -> ATLAS DIGITAL SA | C73: =IF(B73="","",VLOOKUP(B73,[2]Sheet1!$B$2:$C$708,2,0)) -> EL094154295 | D73: =IF(B73="","",VLOOKUP(B73,[2]Sheet1!$B$2:$D$708,3,0)) -> JP | E73: =IF(B73="","",VLOOKUP(B73,[2]Sheet1!$B$2:$E$708,4,0)) -> GR | F73: =IF(B73="","",VLOOKUP(B73,[2]Sheet1!$B$2:$F$708,5,0)) -> EXW | G73: =IF(B73="","",VLOOKUP(B73,[2]Sheet1!$B$2:$G$708,6,0)) -> 1 | H73: =IF(B73="","",VLOOKUP(B73,[2]Sheet1!$B$2:$H$708,7,0)) -> 1.1 | I73: =IF(B73="","",VLOOKUP(B73,[2]Sheet1!$B$2:$I$708,8,0)) -> 3 | K73: =IF(B73="","",VLOOKUP(L73,[3]Sheet1!$B$2:$J$5000,3,0)) -> 84439990 | L73: =IF([1]Sheet!$J73="","",[1]Sheet!$J73) -> ROLAND GUIDE,CUT CARRIAGE CABLE SP-300 | N73: =IF(B73="","",VLOOKUP(L73,[3]Sheet1!$B$2:$J$5000,2,0)) -> BUC | O73: =IF([1]Sheet!$K73="","",[1]Sheet!$K73) -> 4 | P73: =IF([1]Sheet!$M73="","",[1]Sheet!$M73) -> 21.75 | Q73: =IF(ISNA(IF(B73="","",VLOOKUP(L73,[3]Sheet1!$B$2:$J$5000,9,0)*O73)),0,(IF(B73="","",VLOOKUP(L73,[3]Sheet1!$B$2:$J$5000,9,0)*O73))) -> 0 | R73: =IF([1]Sheet!$N73="","",[1]Sheet!$N73) -> 87
A74: =IF([1]Sheet!$E74="","",[1]Sheet!$E74) -> 43880 | B74: =IF([1]Sheet!$A74="","",[1]Sheet!$A74) -> ATLAS DIGITAL SA | C74: =IF(B74="","",VLOOKUP(B74,[2]Sheet1!$B$2:$C$708,2,0)) -> EL094154295 | D74: =IF(B74="","",VLOOKUP(B74,[2]Sheet1!$B$2:$D$708,3,0)) -> JP | E74: =IF(B74="","",VLOOKUP(B74,[2]Sheet1!$B$2:$E$708,4,0)) -> GR | F74: =IF(B74="","",VLOOKUP(B74,[2]Sheet1!$B$2:$F$708,5,0)) -> EXW | G74: =IF(B74="","",VLOOKUP(B74,[2]Sheet1!$B$2:$G$708,6,0)) -> 1 | H74: =IF(B74="","",VLOOKUP(B74,[2]Sheet1!$B$2:$H$708,7,0)) -> 1.1 | I74: =IF(B74="","",VLOOKUP(B74,[2]Sheet1!$B$2:$I$708,8,0)) -> 3 | K74: =IF(B74="","",VLOOKUP(L74,[3]Sheet1!$B$2:$J$5000,3,0)) -> 32151900 | L74: =IF([1]Sheet!$J74="","",[1]Sheet!$J74) -> ROLAND MAX2 ESL4-220 WH | N74: =IF(B74="","",VLOOKUP(L74,[3]Sheet1!$B$2:$J$5000,2,0)) -> BUC | O74: =IF([1]Sheet!$K74="","",[1]Sheet!$K74) -> 1 | P74: =IF([1]Sheet!$M74="","",[1]Sheet!$M74) -> 355.63 | Q74: =IF(ISNA(IF(B74="","",VLOOKUP(L74,[3]Sheet1!$B$2:$J$5000,9,0)*O74)),0,(IF(B74="","",VLOOKUP(L74,[3]Sheet1!$B$2:$J$5000,9,0)*O74))) -> 0.55 | R74: =IF([1]Sheet!$N74="","",[1]Sheet!$N74) -> 355.63
A75: =IF([1]Sheet!$E75="","",[1]Sheet!$E75) -> 43880 | B75: =IF([1]Sheet!$A75="","",[1]Sheet!$A75) -> ATLAS DIGITAL SA | C75: =IF(B75="","",VLOOKUP(B75,[2]Sheet1!$B$2:$C$708,2,0)) -> EL094154295 | D75: =IF(B75="","",VLOOKUP(B75,[2]Sheet1!$B$2:$D$708,3,0)) -> JP | E75: =IF(B75="","",VLOOKUP(B75,[2]Sheet1!$B$2:$E$708,4,0)) -> GR | F75: =IF(B75="","",VLOOKUP(B75,[2]Sheet1!$B$2:$F$708,5,0)) -> EXW | G75: =IF(B75="","",VLOOKUP(B75,[2]Sheet1!$B$2:$G$708,6,0)) -> 1 | H75: =IF(B75="","",VLOOKUP(B75,[2]Sheet1!$B$2:$H$708,7,0)) -> 1.1 | I75: =IF(B75="","",VLOOKUP(B75,[2]Sheet1!$B$2:$I$708,8,0)) -> 3 | K75: =IF(B75="","",VLOOKUP(L75,[3]Sheet1!$B$2:$J$5000,3,0)) -> 84439990 | L75: =IF([1]Sheet!$J75="","",[1]Sheet!$J75) -> ROLAND PAD,CUTTER GX-640 | N75: =IF(B75="","",VLOOKUP(L75,[3]Sheet1!$B$2:$J$5000,2,0)) -> BUC | O75: =IF([1]Sheet!$K75="","",[1]Sheet!$K75) -> 4 | P75: =IF([1]Sheet!$M75="","",[1]Sheet!$M75) -> 99.42 | Q75: =IF(ISNA(IF(B75="","",VLOOKUP(L75,[3]Sheet1!$B$2:$J$5000,9,0)*O75)),0,(IF(B75="","",VLOOKUP(L75,[3]Sheet1!$B$2:$J$5000,9,0)*O75))) -> 0 | R75: =IF([1]Sheet!$N75="","",[1]Sheet!$N75) -> 397.7
A76: =IF([1]Sheet!$E76="","",[1]Sheet!$E76) -> 43880 | B76: =IF([1]Sheet!$A76="","",[1]Sheet!$A76) -> ATLAS DIGITAL SA | C76: =IF(B76="","",VLOOKUP(B76,[2]Sheet1!$B$2:$C$708,2,0)) -> EL094154295 | D76: =IF(B76="","",VLOOKUP(B76,[2]Sheet1!$B$2:$D$708,3,0)) -> JP | E76: =IF(B76="","",VLOOKUP(B76,[2]Sheet1!$B$2:$E$708,4,0)) -> GR | F76: =IF(B76="","",VLOOKUP(B76,[2]Sheet1!$B$2:$F$708,5,0)) -> EXW | G76: =IF(B76="","",VLOOKUP(B76,[2]Sheet1!$B$2:$G$708,6,0)) -> 1 | H76: =IF(B76="","",VLOOKUP(B76,[2]Sheet1!$B$2:$H$708,7,0)) -> 1.1 | I76: =IF(B76="","",VLOOKUP(B76,[2]Sheet1!$B$2:$I$708,8,0)) -> 3 | K76: =IF(B76="","",VLOOKUP(L76,[3]Sheet1!$B$2:$J$5000,3,0)) -> 84439990 | L76: =IF([1]Sheet!$J76="","",[1]Sheet!$J76) -> ROLAND PAD,CUTTER XR-640 | N76: =IF(B76="","",VLOOKUP(L76,[3]Sheet1!$B$2:$J$5000,2,0)) -> BUC | O76: =IF([1]Sheet!$K76="","",[1]Sheet!$K76) -> 4 | P76: =IF([1]Sheet!$M76="","",[1]Sheet!$M76) -> 74.57 | Q76: =IF(ISNA(IF(B76="","",VLOOKUP(L76,[3]Sheet1!$B$2:$J$5000,9,0)*O76)),0,(IF(B76="","",VLOOKUP(L76,[3]Sheet1!$B$2:$J$5000,9,0)*O76))) -> 0 | R76: =IF([1]Sheet!$N76="","",[1]Sheet!$N76) -> 298.27
A77: =IF([1]Sheet!$E77="","",[1]Sheet!$E77) -> 43872 | B77: =IF([1]Sheet!$A77="","",[1]Sheet!$A77) -> ATLAS DIGITAL SA | C77: =IF(B77="","",VLOOKUP(B77,[2]Sheet1!$B$2:$C$708,2,0)) -> EL094154295 | D77: =IF(B77="","",VLOOKUP(B77,[2]Sheet1!$B$2:$D$708,3,0)) -> JP | E77: =IF(B77="","",VLOOKUP(B77,[2]Sheet1!$B$2:$E$708,4,0)) -> GR | F77: =IF(B77="","",VLOOKUP(B77,[2]Sheet1!$B$2:$F$708,5,0)) -> EXW | G77: =IF(B77="","",VLOOKUP(B77,[2]Sheet1!$B$2:$G$708,6,0)) -> 1 | H77: =IF(B77="","",VLOOKUP(B77,[2]Sheet1!$B$2:$H$708,7,0)) -> 1.1 | I77: =IF(B77="","",VLOOKUP(B77,[2]Sheet1!$B$2:$I$708,8,0)) -> 3 | K77: =IF(B77="","",VLOOKUP(L77,[3]Sheet1!$B$2:$J$5000,3,0)) -> 84433900 | L77: =IF([1]Sheet!$J77="","",[1]Sheet!$J77) -> ROLAND RF-640 | N77: =IF(B77="","",VLOOKUP(L77,[3]Sheet1!$B$2:$J$5000,2,0)) -> BUC | O77: =IF([1]Sheet!$K77="","",[1]Sheet!$K77) -> 2 | P77: =IF([1]Sheet!$M77="","",[1]Sheet!$M77) -> 34320.96 | Q77: =IF(ISNA(IF(B77="","",VLOOKUP(L77,[3]Sheet1!$B$2:$J$5000,9,0)*O77)),0,(IF(B77="","",VLOOKUP(L77,[3]Sheet1!$B$2:$J$5000,9,0)*O77))) -> 270 | R77: =IF([1]Sheet!$N77="","",[1]Sheet!$N77) -> 68641.92
A78: =IF([1]Sheet!$E78="","",[1]Sheet!$E78) -> 43872 | B78: =IF([1]Sheet!$A78="","",[1]Sheet!$A78) -> ATLAS DIGITAL SA | C78: =IF(B78="","",VLOOKUP(B78,[2]Sheet1!$B$2:$C$708,2,0)) -> EL094154295 | D78: =IF(B78="","",VLOOKUP(B78,[2]Sheet1!$B$2:$D$708,3,0)) -> JP | E78: =IF(B78="","",VLOOKUP(B78,[2]Sheet1!$B$2:$E$708,4,0)) -> GR | F78: =IF(B78="","",VLOOKUP(B78,[2]Sheet1!$B$2:$F$708,5,0)) -> EXW | G78: =IF(B78="","",VLOOKUP(B78,[2]Sheet1!$B$2:$G$708,6,0)) -> 1 | H78: =IF(B78="","",VLOOKUP(B78,[2]Sheet1!$B$2:$H$708,7,0)) -> 1.1 | I78: =IF(B78="","",VLOOKUP(B78,[2]Sheet1!$B$2:$I$708,8,0)) -> 3 | K78: =IF(B78="","",VLOOKUP(L78,[3]Sheet1!$B$2:$J$5000,3,0)) -> 84433900 | L78: =IF([1]Sheet!$J78="","",[1]Sheet!$J78) -> ROLAND RF-640 | N78: =IF(B78="","",VLOOKUP(L78,[3]Sheet1!$B$2:$J$5000,2,0)) -> BUC | O78: =IF([1]Sheet!$K78="","",[1]Sheet!$K78) -> 1 | P78: =IF([1]Sheet!$M78="","",[1]Sheet!$M78) -> 34320.96 | Q78: =IF(ISNA(IF(B78="","",VLOOKUP(L78,[3]Sheet1!$B$2:$J$5000,9,0)*O78)),0,(IF(B78="","",VLOOKUP(L78,[3]Sheet1!$B$2:$J$5000,9,0)*O78))) -> 135 | R78: =IF([1]Sheet!$N78="","",[1]Sheet!$N78) -> 34320.96
A79: =IF([1]Sheet!$E79="","",[1]Sheet!$E79) -> 43880 | B79: =IF([1]Sheet!$A79="","",[1]Sheet!$A79) -> ATLAS DIGITAL SA | C79: =IF(B79="","",VLOOKUP(B79,[2]Sheet1!$B$2:$C$708,2,0)) -> EL094154295 | D79: =IF(B79="","",VLOOKUP(B79,[2]Sheet1!$B$2:$D$708,3,0)) -> JP | E79: =IF(B79="","",VLOOKUP(B79,[2]Sheet1!$B$2:$E$708,4,0)) -> GR | F79: =IF(B79="","",VLOOKUP(B79,[2]Sheet1!$B$2:$F$708,5,0)) -> EXW | G79: =IF(B79="","",VLOOKUP(B79,[2]Sheet1!$B$2:$G$708,6,0)) -> 1 | H79: =IF(B79="","",VLOOKUP(B79,[2]Sheet1!$B$2:$H$708,7,0)) -> 1.1 | I79: =IF(B79="","",VLOOKUP(B79,[2]Sheet1!$B$2:$I$708,8,0)) -> 3 | K79: =IF(B79="","",VLOOKUP(L79,[3]Sheet1!$B$2:$J$5000,3,0)) -> 84439990 | L79: =IF([1]Sheet!$J79="","",[1]Sheet!$J79) -> ROLAND SENSOR INTERRUPTER,GP2A25NJ | N79: =IF(B79="","",VLOOKUP(L79,[3]Sheet1!$B$2:$J$5000,2,0)) -> BUC | O79: =IF([1]Sheet!$K79="","",[1]Sheet!$K79) -> 1 | P79: =IF([1]Sheet!$M79="","",[1]Sheet!$M79) -> 80.78 | Q79: =IF(ISNA(IF(B79="","",VLOOKUP(L79,[3]Sheet1!$B$2:$J$5000,9,0)*O79)),0,(IF(B79="","",VLOOKUP(L79,[3]Sheet1!$B$2:$J$5000,9,0)*O79))) -> 0 | R79: =IF([1]Sheet!$N79="","",[1]Sheet!$N79) -> 80.78
A80: =IF([1]Sheet!$E80="","",[1]Sheet!$E80) -> 43880 | B80: =IF([1]Sheet!$A80="","",[1]Sheet!$A80) -> ATLAS DIGITAL SA | C80: =IF(B80="","",VLOOKUP(B80,[2]Sheet1!$B$2:$C$708,2,0)) -> EL094154295 | D80: =IF(B80="","",VLOOKUP(B80,[2]Sheet1!$B$2:$D$708,3,0)) -> JP | E80: =IF(B80="","",VLOOKUP(B80,[2]Sheet1!$B$2:$E$708,4,0)) -> GR | F80: =IF(B80="","",VLOOKUP(B80,[2]Sheet1!$B$2:$F$708,5,0)) -> EXW | G80: =IF(B80="","",VLOOKUP(B80,[2]Sheet1!$B$2:$G$708,6,0)) -> 1 | H80: =IF(B80="","",VLOOKUP(B80,[2]Sheet1!$B$2:$H$708,7,0)) -> 1.1 | I80: =IF(B80="","",VLOOKUP(B80,[2]Sheet1!$B$2:$I$708,8,0)) -> 3 | K80: =IF(B80="","",VLOOKUP(L80,[3]Sheet1!$B$2:$J$5000,3,0)) -> 84439990 | L80: =IF([1]Sheet!$J80="","",[1]Sheet!$J80) -> ROLAND SENSOR-INTERRUPTER,OJ-5305-A5 | N80: =IF(B80="","",VLOOKUP(L80,[3]Sheet1!$B$2:$J$5000,2,0)) -> BUC | O80: =IF([1]Sheet!$K80="","",[1]Sheet!$K80) -> 5 | P80: =IF([1]Sheet!$M80="","",[1]Sheet!$M80) -> 34.18 | Q80: =IF(ISNA(IF(B80="","",VLOOKUP(L80,[3]Sheet1!$B$2:$J$5000,9,0)*O80)),0,(IF(B80="","",VLOOKUP(L80,[3]Sheet1!$B$2:$J$5000,9,0)*O80))) -> 0 | R80: =IF([1]Sheet!$N80="","",[1]Sheet!$N80) -> 170.89
A81: =IF([1]Sheet!$E81="","",[1]Sheet!$E81) -> 43880 | B81: =IF([1]Sheet!$A81="","",[1]Sheet!$A81) -> ATLAS DIGITAL SA | C81: =IF(B81="","",VLOOKUP(B81,[2]Sheet1!$B$2:$C$708,2,0)) -> EL094154295 | D81: =IF(B81="","",VLOOKUP(B81,[2]Sheet1!$B$2:$D$708,3,0)) -> JP | E81: =IF(B81="","",VLOOKUP(B81,[2]Sheet1!$B$2:$E$708,4,0)) -> GR | F81: =IF(B81="","",VLOOKUP(B81,[2]Sheet1!$B$2:$F$708,5,0)) -> EXW | G81: =IF(B81="","",VLOOKUP(B81,[2]Sheet1!$B$2:$G$708,6,0)) -> 1 | H81: =IF(B81="","",VLOOKUP(B81,[2]Sheet1!$B$2:$H$708,7,0)) -> 1.1 | I81: =IF(B81="","",VLOOKUP(B81,[2]Sheet1!$B$2:$I$708,8,0)) -> 3 | K81: =IF(B81="","",VLOOKUP(L81,[3]Sheet1!$B$2:$J$5000,3,0)) -> 84439990 | L81: =IF([1]Sheet!$J81="","",[1]Sheet!$J81) -> ROLAND SPRING,PINCH RIGHT SP-300 | N81: =IF(B81="","",VLOOKUP(L81,[3]Sheet1!$B$2:$J$5000,2,0)) -> BUC | O81: =IF([1]Sheet!$K81="","",[1]Sheet!$K81) -> 1 | P81: =IF([1]Sheet!$M81="","",[1]Sheet!$M81) -> 9.32 | Q81: =IF(ISNA(IF(B81="","",VLOOKUP(L81,[3]Sheet1!$B$2:$J$5000,9,0)*O81)),0,(IF(B81="","",VLOOKUP(L81,[3]Sheet1!$B$2:$J$5000,9,0)*O81))) -> 0 | R81: =IF([1]Sheet!$N81="","",[1]Sheet!$N81) -> 9.32
A82: =IF([1]Sheet!$E82="","",[1]Sheet!$E82) -> 43880 | B82: =IF([1]Sheet!$A82="","",[1]Sheet!$A82) -> WENZHOU INTERNATIONAL ECO-TEC CO | C82: =IF(B82="","",VLOOKUP(B82,[2]Sheet1!$B$2:$C$708,2,0)) -> ATU40607009 | D82: =IF(B82="","",VLOOKUP(B82,[2]Sheet1!$B$2:$D$708,3,0)) -> CN | E82: =IF(B82="","",VLOOKUP(B82,[2]Sheet1!$B$2:$E$708,4,0)) -> AT | F82: =IF(B82="","",VLOOKUP(B82,[2]Sheet1!$B$2:$F$708,5,0)) -> EXW | G82: =IF(B82="","",VLOOKUP(B82,[2]Sheet1!$B$2:$G$708,6,0)) -> 1 | H82: =IF(B82="","",VLOOKUP(B82,[2]Sheet1!$B$2:$H$708,7,0)) -> 1.1 | I82: =IF(B82="","",VLOOKUP(B82,[2]Sheet1!$B$2:$I$708,8,0)) -> 3 | K82: =IF(B82="","",VLOOKUP(L82,[3]Sheet1!$B$2:$J$5000,3,0)) -> 84439990 | L82: =IF([1]Sheet!$J82="","",[1]Sheet!$J82) -> ROLAND TAKE UP SYSTEM T1 | N82: =IF(B82="","",VLOOKUP(L82,[3]Sheet1!$B$2:$J$5000,2,0)) -> BUC | O82: =IF([1]Sheet!$K82="","",[1]Sheet!$K82) -> 6 | P82: =IF([1]Sheet!$M82="","",[1]Sheet!$M82) -> 2030.03 | Q82: =IF(ISNA(IF(B82="","",VLOOKUP(L82,[3]Sheet1!$B$2:$J$5000,9,0)*O82)),0,(IF(B82="","",VLOOKUP(L82,[3]Sheet1!$B$2:$J$5000,9,0)*O82))) -> 154.8 | R82: =IF([1]Sheet!$N82="","",[1]Sheet!$N82) -> 12180.16
A83: =IF([1]Sheet!$E83="","",[1]Sheet!$E83) -> 43880 | B83: =IF([1]Sheet!$A83="","",[1]Sheet!$A83) -> ATLAS DIGITAL SA | C83: =IF(B83="","",VLOOKUP(B83,[2]Sheet1!$B$2:$C$708,2,0)) -> EL094154295 | D83: =IF(B83="","",VLOOKUP(B83,[2]Sheet1!$B$2:$D$708,3,0)) -> JP | E83: =IF(B83="","",VLOOKUP(B83,[2]Sheet1!$B$2:$E$708,4,0)) -> GR | F83: =IF(B83="","",VLOOKUP(B83,[2]Sheet1!$B$2:$F$708,5,0)) -> EXW | G83: =IF(B83="","",VLOOKUP(B83,[2]Sheet1!$B$2:$G$708,6,0)) -> 1 | H83: =IF(B83="","",VLOOKUP(B83,[2]Sheet1!$B$2:$H$708,7,0)) -> 1.1 | I83: =IF(B83="","",VLOOKUP(B83,[2]Sheet1!$B$2:$I$708,8,0)) -> 3 | K83: =IF(B83="","",VLOOKUP(L83,[3]Sheet1!$B$2:$J$5000,3,0)) -> 84439990 | L83: =IF([1]Sheet!$J83="","",[1]Sheet!$J83) -> ROLAND WIPER,HEAD FELT VS-640 | N83: =IF(B83="","",VLOOKUP(L83,[3]Sheet1!$B$2:$J$5000,2,0)) -> BUC | O83: =IF([1]Sheet!$K83="","",[1]Sheet!$K83) -> 20 | P83: =IF([1]Sheet!$M83="","",[1]Sheet!$M83) -> 40.39 | Q83: =IF(ISNA(IF(B83="","",VLOOKUP(L83,[3]Sheet1!$B$2:$J$5000,9,0)*O83)),0,(IF(B83="","",VLOOKUP(L83,[3]Sheet1!$B$2:$J$5000,9,0)*O83))) -> 0 | R83: =IF([1]Sheet!$N83="","",[1]Sheet!$N83) -> 807.82
A84: =IF([1]Sheet!$E84="","",[1]Sheet!$E84) -> 43880 | B84: =IF([1]Sheet!$A84="","",[1]Sheet!$A84) -> ATLAS DIGITAL SA | C84: =IF(B84="","",VLOOKUP(B84,[2]Sheet1!$B$2:$C$708,2,0)) -> EL094154295 | D84: =IF(B84="","",VLOOKUP(B84,[2]Sheet1!$B$2:$D$708,3,0)) -> JP | E84: =IF(B84="","",VLOOKUP(B84,[2]Sheet1!$B$2:$E$708,4,0)) -> GR | F84: =IF(B84="","",VLOOKUP(B84,[2]Sheet1!$B$2:$F$708,5,0)) -> EXW | G84: =IF(B84="","",VLOOKUP(B84,[2]Sheet1!$B$2:$G$708,6,0)) -> 1 | H84: =IF(B84="","",VLOOKUP(B84,[2]Sheet1!$B$2:$H$708,7,0)) -> 1.1 | I84: =IF(B84="","",VLOOKUP(B84,[2]Sheet1!$B$2:$I$708,8,0)) -> 3 | K84: =IF(B84="","",VLOOKUP(L84,[3]Sheet1!$B$2:$J$5000,3,0)) -> 84439990 | L84: =IF([1]Sheet!$J84="","",[1]Sheet!$J84) -> ROLAND WIPER,HEAD FOR UV INK | N84: =IF(B84="","",VLOOKUP(L84,[3]Sheet1!$B$2:$J$5000,2,0)) -> BUC | O84: =IF([1]Sheet!$K84="","",[1]Sheet!$K84) -> 30 | P84: =IF([1]Sheet!$M84="","",[1]Sheet!$M84) -> 43.5 | Q84: =IF(ISNA(IF(B84="","",VLOOKUP(L84,[3]Sheet1!$B$2:$J$5000,9,0)*O84)),0,(IF(B84="","",VLOOKUP(L84,[3]Sheet1!$B$2:$J$5000,9,0)*O84))) -> 0 | R84: =IF([1]Sheet!$N84="","",[1]Sheet!$N84) -> 1304.94
A85: =IF([1]Sheet!$E85="","",[1]Sheet!$E85) -> 43880 | B85: =IF([1]Sheet!$A85="","",[1]Sheet!$A85) -> ATLAS DIGITAL SA | C85: =IF(B85="","",VLOOKUP(B85,[2]Sheet1!$B$2:$C$708,2,0)) -> EL094154295 | D85: =IF(B85="","",VLOOKUP(B85,[2]Sheet1!$B$2:$D$708,3,0)) -> JP | E85: =IF(B85="","",VLOOKUP(B85,[2]Sheet1!$B$2:$E$708,4,0)) -> GR | F85: =IF(B85="","",VLOOKUP(B85,[2]Sheet1!$B$2:$F$708,5,0)) -> EXW | G85: =IF(B85="","",VLOOKUP(B85,[2]Sheet1!$B$2:$G$708,6,0)) -> 1 | H85: =IF(B85="","",VLOOKUP(B85,[2]Sheet1!$B$2:$H$708,7,0)) -> 1.1 | I85: =IF(B85="","",VLOOKUP(B85,[2]Sheet1!$B$2:$I$708,8,0)) -> 3 | K85: =IF(B85="","",VLOOKUP(L85,[3]Sheet1!$B$2:$J$5000,3,0)) -> 84439990 | L85: =IF([1]Sheet!$J85="","",[1]Sheet!$J85) -> ROLAND WIPER,HEAD VS-640/XR-640 | N85: =IF(B85="","",VLOOKUP(L85,[3]Sheet1!$B$2:$J$5000,2,0)) -> BUC | O85: =IF([1]Sheet!$K85="","",[1]Sheet!$K85) -> 10 | P85: =IF([1]Sheet!$M85="","",[1]Sheet!$M85) -> 71.46 | Q85: =IF(ISNA(IF(B85="","",VLOOKUP(L85,[3]Sheet1!$B$2:$J$5000,9,0)*O85)),0,(IF(B85="","",VLOOKUP(L85,[3]Sheet1!$B$2:$J$5000,9,0)*O85))) -> 0 | R85: =IF([1]Sheet!$N85="","",[1]Sheet!$N85) -> 714.61
A86: =IF([1]Sheet!$E86="","",[1]Sheet!$E86) -> 43880 | B86: =IF([1]Sheet!$A86="","",[1]Sheet!$A86) -> ATLAS DIGITAL SA | C86: =IF(B86="","",VLOOKUP(B86,[2]Sheet1!$B$2:$C$708,2,0)) -> EL094154295 | D86: =IF(B86="","",VLOOKUP(B86,[2]Sheet1!$B$2:$D$708,3,0)) -> JP | E86: =IF(B86="","",VLOOKUP(B86,[2]Sheet1!$B$2:$E$708,4,0)) -> GR | F86: =IF(B86="","",VLOOKUP(B86,[2]Sheet1!$B$2:$F$708,5,0)) -> EXW | G86: =IF(B86="","",VLOOKUP(B86,[2]Sheet1!$B$2:$G$708,6,0)) -> 1 | H86: =IF(B86="","",VLOOKUP(B86,[2]Sheet1!$B$2:$H$708,7,0)) -> 1.1 | I86: =IF(B86="","",VLOOKUP(B86,[2]Sheet1!$B$2:$I$708,8,0)) -> 3 | K86: =IF(B86="","",VLOOKUP(L86,[3]Sheet1!$B$2:$J$5000,3,0)) -> 84439990 | L86: =IF([1]Sheet!$J86="","",[1]Sheet!$J86) -> ROLAND XD-CH2 | N86: =IF(B86="","",VLOOKUP(L86,[3]Sheet1!$B$2:$J$5000,2,0)) -> BUC | O86: =IF([1]Sheet!$K86="","",[1]Sheet!$K86) -> 6 | P86: =IF([1]Sheet!$M86="","",[1]Sheet!$M86) -> 301.14 | Q86: =IF(ISNA(IF(B86="","",VLOOKUP(L86,[3]Sheet1!$B$2:$J$5000,9,0)*O86)),0,(IF(B86="","",VLOOKUP(L86,[3]Sheet1!$B$2:$J$5000,9,0)*O86))) -> 0 | R86: =IF([1]Sheet!$N86="","",[1]Sheet!$N86) -> 1806.84
A87: =IF([1]Sheet!$E87="","",[1]Sheet!$E87) -> 43880 | B87: =IF([1]Sheet!$A87="","",[1]Sheet!$A87) -> ATLAS DIGITAL SA | C87: =IF(B87="","",VLOOKUP(B87,[2]Sheet1!$B$2:$C$708,2,0)) -> EL094154295 | D87: =IF(B87="","",VLOOKUP(B87,[2]Sheet1!$B$2:$D$708,3,0)) -> JP | E87: =IF(B87="","",VLOOKUP(B87,[2]Sheet1!$B$2:$E$708,4,0)) -> GR | F87: =IF(B87="","",VLOOKUP(B87,[2]Sheet1!$B$2:$F$708,5,0)) -> EXW | G87: =IF(B87="","",VLOOKUP(B87,[2]Sheet1!$B$2:$G$708,6,0)) -> 1 | H87: =IF(B87="","",VLOOKUP(B87,[2]Sheet1!$B$2:$H$708,7,0)) -> 1.1 | I87: =IF(B87="","",VLOOKUP(B87,[2]Sheet1!$B$2:$I$708,8,0)) -> 3 | K87: =IF(B87="","",VLOOKUP(L87,[3]Sheet1!$B$2:$J$5000,3,0)) -> 84439990 | L87: =IF([1]Sheet!$J87="","",[1]Sheet!$J87) -> ROLAND XD-CH3 | N87: =IF(B87="","",VLOOKUP(L87,[3]Sheet1!$B$2:$J$5000,2,0)) -> BUC | O87: =IF([1]Sheet!$K87="","",[1]Sheet!$K87) -> 6 | P87: =IF([1]Sheet!$M87="","",[1]Sheet!$M87) -> 215.1 | Q87: =IF(ISNA(IF(B87="","",VLOOKUP(L87,[3]Sheet1!$B$2:$J$5000,9,0)*O87)),0,(IF(B87="","",VLOOKUP(L87,[3]Sheet1!$B$2:$J$5000,9,0)*O87))) -> 0 | R87: =IF([1]Sheet!$N87="","",[1]Sheet!$N87) -> 1290.6
A88: =IF([1]Sheet!$E88="","",[1]Sheet!$E88) -> 43880 | B88: =IF([1]Sheet!$A88="","",[1]Sheet!$A88) -> ATLAS DIGITAL SA | C88: =IF(B88="","",VLOOKUP(B88,[2]Sheet1!$B$2:$C$708,2,0)) -> EL094154295 | D88: =IF(B88="","",VLOOKUP(B88,[2]Sheet1!$B$2:$D$708,3,0)) -> JP | E88: =IF(B88="","",VLOOKUP(B88,[2]Sheet1!$B$2:$E$708,4,0)) -> GR | F88: =IF(B88="","",VLOOKUP(B88,[2]Sheet1!$B$2:$F$708,5,0)) -> EXW | G88: =IF(B88="","",VLOOKUP(B88,[2]Sheet1!$B$2:$G$708,6,0)) -> 1 | H88: =IF(B88="","",VLOOKUP(B88,[2]Sheet1!$B$2:$H$708,7,0)) -> 1.1 | I88: =IF(B88="","",VLOOKUP(B88,[2]Sheet1!$B$2:$I$708,8,0)) -> 3 | K88: =IF(B88="","",VLOOKUP(L88,[3]Sheet1!$B$2:$J$5000,3,0)) -> 84439990 | L88: =IF([1]Sheet!$J88="","",[1]Sheet!$J88) -> ROLAND ZEC-U5022 | N88: =IF(B88="","",VLOOKUP(L88,[3]Sheet1!$B$2:$J$5000,2,0)) -> BUC | O88: =IF([1]Sheet!$K88="","",[1]Sheet!$K88) -> 20 | P88: =IF([1]Sheet!$M88="","",[1]Sheet!$M88) -> 71.7 | Q88: =IF(ISNA(IF(B88="","",VLOOKUP(L88,[3]Sheet1!$B$2:$J$5000,9,0)*O88)),0,(IF(B88="","",VLOOKUP(L88,[3]Sheet1!$B$2:$J$5000,9,0)*O88))) -> 0 | R88: =IF([1]Sheet!$N88="","",[1]Sheet!$N88) -> 1434
A89: =IF([1]Sheet!$E89="","",[1]Sheet!$E89) -> 43880 | B89: =IF([1]Sheet!$A89="","",[1]Sheet!$A89) -> ATLAS DIGITAL SA | C89: =IF(B89="","",VLOOKUP(B89,[2]Sheet1!$B$2:$C$708,2,0)) -> EL094154295 | D89: =IF(B89="","",VLOOKUP(B89,[2]Sheet1!$B$2:$D$708,3,0)) -> JP | E89: =IF(B89="","",VLOOKUP(B89,[2]Sheet1!$B$2:$E$708,4,0)) -> GR | F89: =IF(B89="","",VLOOKUP(B89,[2]Sheet1!$B$2:$F$708,5,0)) -> EXW | G89: =IF(B89="","",VLOOKUP(B89,[2]Sheet1!$B$2:$G$708,6,0)) -> 1 | H89: =IF(B89="","",VLOOKUP(B89,[2]Sheet1!$B$2:$H$708,7,0)) -> 1.1 | I89: =IF(B89="","",VLOOKUP(B89,[2]Sheet1!$B$2:$I$708,8,0)) -> 3 | K89: =IF(B89="","",VLOOKUP(L89,[3]Sheet1!$B$2:$J$5000,3,0)) -> 84439990 | L89: =IF([1]Sheet!$J89="","",[1]Sheet!$J89) -> ROLAND ZS-4D SPINDLE UNIT | N89: =IF(B89="","",VLOOKUP(L89,[3]Sheet1!$B$2:$J$5000,2,0)) -> BUC | O89: =IF([1]Sheet!$K89="","",[1]Sheet!$K89) -> 1 | P89: =IF([1]Sheet!$M89="","",[1]Sheet!$M89) -> 5028.56 | Q89: =IF(ISNA(IF(B89="","",VLOOKUP(L89,[3]Sheet1!$B$2:$J$5000,9,0)*O89)),0,(IF(B89="","",VLOOKUP(L89,[3]Sheet1!$B$2:$J$5000,9,0)*O89))) -> 0 | R89: =IF([1]Sheet!$N89="","",[1]Sheet!$N89) -> 5028.56

Sheet Sheet2
A1: =COUNTA([1]Sheet!$A$2:A992) -> 88
